Cogmind - Beta 14 X2 @@@ ROGUE MODE // 2024.08.03 @ 19:24:20 Player: aoemica Result: Escaped singularity! Performance ------------- Evolutions (9) 4500 Regions Visited (30) 6000 Robots Destroyed (441) 2205 Value Destroyed (18933) 18933 Prototype IDs (324) 6480 Alien Tech Used (16) 3200 Bonus (50953) 50953 TOTAL SCORE: 92271 Bonus ------- High Alert Combat Kills 1776 Follower Combat Kills 4669 Forged Quantum Companion 2000 Built PL-3XN's Obliterator 1000 Network Hubs Disabled 400 Aligned with FarCom 300 Built Enhanced Grunts 300 Found Hidden Lab 3000 Used Core Reset Matrix 3000 Met MAIN.C 5000 Destroyed MAIN.C Shell 5000 Destroyed MAIN.C 10000 Met Architect 300 Started Test 138-B 500 Destroyed A8 300 Destroyed A5 500 Destroyed A4 700 Destroyed A2 1000 Destroyed Architect 15000 Win 3000 Friendly Fire -6792 Cogmind --------- Core Integrity 574/1850 Matter 290/300 Energy 618/630 System Corruption 0% Temperature Cool (24) Movement Flying (12) Location Near Former Tau Ceti IV Parts ------- > --- POWER (2) -------- Zero-point Reactor Zero-point Reactor > --- PROPULSION (8) --- Improved Cesium-ion Thruster Cooled Impulse Thruster Cooled Impulse Thruster Improved Q-thruster Improved Q-thruster Cooled Q-thruster Cooled Q-thruster Experimental Q-thruster > --- UTILITY (12) ----- Experimental Power Amplifier Advanced Melee Analysis Suite Experimental Melee Analysis Suite Experimental Melee Analysis Suite Experimental Core Analyzer Experimental Core Analyzer Improved Armor Integrity Analyzer Femtoactuators Experimental Reaction Control System Experimental Phase Shifter Experimental Utility Shielding Centrium Linked Plating > --- WEAPON (4) ------- A3's Sniper Rifle Superquantum Companion Sigix Broadsword > --- INVENTORY (5) ---- YI-UF0's Bottomless Matter Pit (1500) Gatling Beam Modified Sigix Sheargun PL-3XN's Obliterator (3 Rings) Peak State ------------ > --- POWER ------------ Zero-point Reactor Zero-point Reactor > --- PROPULSION ------- Improved Cesium-ion Thruster Cooled Impulse Thruster Cooled Impulse Thruster Improved Q-thruster Improved Q-thruster Cooled Q-thruster Cooled Q-thruster Experimental Q-thruster > --- UTILITY ---------- Experimental Power Amplifier Advanced Melee Analysis Suite Experimental Melee Analysis Suite Experimental Melee Analysis Suite Experimental Core Analyzer Experimental Core Analyzer Improved Armor Integrity Analyzer Femtoactuators Experimental Reaction Control System Experimental Phase Shifter Experimental Utility Shielding Centrium Linked Plating > --- WEAPON ----------- Gatling Beam Superquantum Companion Sigix Broadsword > --- INVENTORY -------- YI-UF0's Bottomless Matter Pit High-powered Transdimensional Reconstructor A3's Sniper Rifle PL-3XN's Obliterator [Rating: 256] Favorites ----------- Power Heavy Ion Engine Engine Heavy Ion Engine Power Core Light Nuclear Core Reactor Fusion Reactor Propulsion Advanced Treads Treads Advanced Treads Leg Experimental Flexi-carbon Leg Flight Unit Cooled Impulse Thruster Utility High-capacity Storage Unit Device Seismic Detector Storage High-capacity Storage Unit Processor Enhanced Optical Array Hackware Improved Hacking Suite Protection Makeshift Medium Armor Plating Artifact Spacefold Activator Weapon Enhanced Autogun Energy Gun Overtuned Pulse Rifle Energy Cannon Heavy Plasma Cannon Ballistic Gun Enhanced Autogun Ballistic Cannon Siege Cannon Launcher Mini Smartbomb Launcher Special Weapon Multitool Slashing Weapon Companion Sword Special Melee Weapon Datajack Build | -11 -10 -10 -9 -9 -9 -8 -8 -8 -8 -8 -6 -6 -6 -5 -5 -5 -5 -5 -4 -4 -4 -3 -3 -3 -2 -2 -2 -1 -1 -1 ------- Run | Yrd Mat Min Mat Min Exi Min Mat Sto Rec Scr Fac Low Low Fac Ext Cet Arc Hub Fac Upp Upp Res Arm Lab Res Qua Sec Acc Com Ac0 Slots Evolved 18 | . . . 2 . . . 2 . . . 4 . . 2 . . . . 2 . . 2 . . 2 . . 2 . . Power 1 | . . . . . . . . . . . . . . . . . . . 1 . . . . . . . . . . . Propulsion 6 | . . . 1 . . . . . . . 1 . . 1 . . . . 1 . . 1 . . 1 . . . . . Utility 10 | . . . . . . . 2 . . . 3 . . 1 . . . . . . . 1 . . 1 . . 2 . . Weapon 1 | . . . 1 . . . . . . . . . . . . . . . . . . . . . . . . . . . Parts Attached 595 | . 9 4 29 8 9 8 16 23 1 109 32 9 7 13 14 7 6 9 19 3 . 24 25 8 43 19 19 19 68 35 Power 36 | . 1 . 2 . 1 2 1 2 . 4 2 . . . . . . 1 . 1 . 2 1 . 6 . . 4 4 2 Engine 11 | . 1 . 2 . 1 1 1 1 . 4 . . . . . . . . . . . . . . . . . . . . Core 6 | . . . . . . 1 . 1 . . . . . . . . . . . 1 . . 1 . 1 . . 1 . . Reactor 19 | . . . . . . . . . . . 2 . . . . . . 1 . . . 2 . . 5 . . 3 4 2 Propulsion 96 | . 3 . 10 . 1 1 6 6 1 22 8 . 2 1 2 . 1 3 5 1 . 4 1 . 4 . 1 2 6 5 Treads 44 | . 2 . 9 . 1 1 6 6 1 18 . . . . . . . . . . . . . . . . . . . . Leg 21 | . 1 . 1 . . . . . . 3 8 . 1 1 2 . 1 3 . . . . . . . . . . . . Wheel . | . . . . . . . . . . . . . . . . . . . . . . . . . . . . . . . Hover . | . . . . . . . . . . . . . . . . . . . . . . . . . . . . . . . Flight 31 | . . . . . . . . . . 1 . . 1 . . . . . 5 1 . 4 1 . 4 . 1 2 6 5 Utility 304 | . 2 . 5 6 3 4 5 10 . 55 13 9 1 5 7 7 2 4 13 1 . 11 11 5 29 17 18 13 35 13 Device 177 | . 1 . 3 2 2 2 1 2 . 48 8 7 . 2 6 3 1 2 5 1 . 4 5 2 20 17 10 4 13 6 Storage 12 | . 1 . 1 1 . . . . . 1 . . 1 . . . . . 1 . . 1 . . 2 . 1 . 2 . Processor 17 | . . . . . . . . . . 1 1 . . . . 1 . . 1 . . . . . . . 3 3 5 2 Hackware 11 | . . . . . . . . . . . . . . 2 . . 1 . . . . 2 2 1 2 . . 1 . . Protection 80 | . . . 1 3 1 2 4 8 . 5 4 2 . 1 1 3 . 2 6 . . 4 4 2 5 . . 3 14 5 Artifact 7 | . . . . . . . . . . . . . . . . . . . . . . . . . . . 4 2 1 . Weapon 159 | . 3 4 12 2 4 1 4 5 . 28 9 . 4 7 5 . 3 1 1 . . 7 12 3 4 2 . . 23 15 Energy Gun 17 | . 2 . 1 . . . . . . 2 2 . 2 3 2 . . . . . . . 1 1 . . . . . 1 Energy Cannon 4 | . . . 1 . . . . . . . . . . 1 . . . 1 . . . . . . 1 . . . . . Ballistic Gun 48 | . 1 2 8 1 4 1 3 4 . 13 4 . . . . . . . . . . 2 1 1 1 . . . . 2 Ballistic Cannon 23 | . . . . . . . . 1 . 5 . . . . . . 1 . . . . . 1 . . . . . 10 5 Launcher 22 | . . . 1 1 . . 1 . . . 3 . 2 3 3 . . . 1 . . 1 5 . . . . . 1 . Special Weapon 14 | . . 2 . . . . . . . 5 . . . . . . . . . . . 2 3 1 1 . . . . . Impact Weapon . | . . . . . . . . . . . . . . . . . . . . . . . . . . . . . . . Slashing Weapon 29 | . . . 1 . . . . . . 2 . . . . . . 1 . . . . 2 1 . 1 2 . . 12 7 Piercing Weapon . | . . . . . . . . . . . . . . . . . . . . . . . . . . . . . . . Special Melee Weapon 2 | . . . . . . . . . . 1 . . . . . . 1 . . . . . . . . . . . . . Unidentified Prototypes 50 | . . . 1 2 1 . 1 1 . 3 9 . 1 1 . 2 . 1 . . . 2 1 7 1 1 4 . 7 4 Parts Lost 36 | . 2 . 3 . 3 2 . . . 6 2 1 . . 2 . 1 1 . 2 . . . . 1 . 1 . 6 3 Power 4 | . . . . . 1 1 . . . . . . . . . . . . . . . . . . . . . . 1 1 Propulsion 15 | . 1 . 2 . 1 . . . . 3 1 . . . . . . 1 . 1 . . . . . . 1 . 4 . Utility 12 | . . . . . 1 . . . . 3 1 1 . . 1 . 1 . . 1 . . . . . . . . 1 2 Weapon 5 | . 1 . 1 . . 1 . . . . . . . . 1 . . . . . . . . . 1 . . . . . Highest Loss Streak 6 | . 1 . 2 . 3 2 . . . 4 2 1 . . 1 . 1 1 . 1 . . . . 1 . 1 . 6 1 To Critical Strikes 2 | . . . . . 2 . . . . . . . . . . . . . . . . . . . . . . . . . Average Slot Usage (%) 84 | . 99 100 99 100 100 99 99 100 100 71 90 92 93 87 92 93 99 99 83 80 89 93 94 88 92 91 90 90 87 94 Engine 6 | . 14 14 11 11 11 9 3 8 9 8 3 . . . . . . . . . . . . . . . . . . . Reactor 1 | . . . . . . . . . . . 2 6 6 5 5 5 5 5 5 5 5 3 4 4 7 8 8 7 7 6 Treads 11 | . 5 28 30 33 33 33 27 27 27 11 . . . . . . . . . . . . . . . . . . . . Leg 5 | . 22 . 2 . . . . . . 2 25 26 26 23 29 29 29 28 . . . . . . . . . . . . Flight 4 | . . . . . . . . . . . . . . . . . . . 25 26 26 27 27 27 28 29 29 26 24 29 Device 13 | . 13 14 9 5 . 9 16 18 18 14 17 19 20 17 16 16 11 11 10 6 10 9 9 8 11 11 8 11 11 14 Storage 8 | . 14 14 11 11 11 11 9 9 9 9 6 6 6 5 5 5 5 5 2 5 5 4 4 4 4 4 4 3 4 . Processor 2 | . . . . . . . . . . . 6 6 6 3 . 1 5 5 9 10 10 5 4 4 4 4 4 6 10 22 Hackware 2 | . . . . . . . . . . . . . . 5 11 9 10 11 5 5 5 12 14 13 12 12 11 7 2 . Protection 7 | . . . 1 5 10 1 10 8 9 8 5 5 6 4 6 11 11 10 11 10 10 9 8 8 7 8 8 9 13 7 Energy Gun 2 | . 27 14 3 . . . . . . 1 6 6 4 4 1 . . . . . . . . . . . . . . . Ballistic Gun 7 | . . 12 27 33 33 33 27 27 27 4 5 6 6 1 . . . . . . . 3 4 . 3 . . . . . Ballistic Cannon 1 | . . . . . . . . . . 3 . . . . . . 4 5 . . . . . . . . . . . . Slashing Weapon 4 | . . . . . . . . . . 4 6 6 6 5 5 5 4 5 5 5 5 4 3 4 4 11 12 11 9 10 Naked Turns . | . . . . . . . . . . . . . . . . . . . . . . . . . . . . . . . Heaviest Build 124 | 13 50 50 57 57 59 57 62 67 61 124 78 78 79 83 84 81 88 88 34 38 38 59 59 62 70 69 71 69 97 82 Greatest Support 126 | 20 40 40 64 60 60 60 60 66 66 66 96 96 96 111 111 96 101 126 51 51 51 61 70 61 80 80 81 90 94 94 Greatest Overweight (x) 29 | . 1 1 1 . . . 1 1 . 2 1 . . . . . 29 1 . 1 . . 1 1 . 1 2 . 1 1 Average Overweight (x) . | . . 1 . . . . . . . . . . . . . . 9 . . . . . . . . . . . . . Largest Inventory Capacity 20 | . 20 20 20 20 20 20 20 20 20 20 20 20 20 20 20 20 20 20 20 10 10 15 15 15 15 15 15 15 15 15 Average Capacity 18 | . 10 20 20 20 20 20 20 20 20 20 20 20 20 20 20 20 20 20 8 10 10 11 15 15 15 15 15 15 15 5 Most Carried 20 | . 12 16 20 20 20 20 20 20 20 20 20 20 20 20 20 20 20 20 20 10 10 15 15 15 15 15 15 15 15 15 Average Carried 16 | . 7 15 19 20 18 19 19 19 19 16 19 19 19 19 19 19 20 19 7 9 10 11 14 11 14 14 14 14 14 4 Final Capacity 20 | 8 20 20 20 20 20 20 20 20 20 20 20 20 20 20 20 20 20 20 10 10 10 15 15 15 15 15 15 15 15 5 Final Carried 20 | 6 12 16 20 20 20 20 20 20 20 20 20 20 20 20 20 20 20 20 10 10 10 15 15 15 15 15 15 15 15 5 Class Distribution -------------------- 21% | Scavenger-Tank 20% | Mutant 11% | Scavenger-Mutant 9% | Tank 8% | Commander-Mutant 6% | Hacker-Sprinter 5% | Alien-Sprinter 5% | Scavenger-Scrapper 4% | Scavenger-Gunner Dominant Class ---------------- Mutant | -10/Materials Mutant | -10/Mines Gunner | -9/Materials Scavenger-Gunner | -9/Mines Scavenger-Tank | -9/Exiles Scavenger-Gunner | -8/Mines Scavenger-Tank | -8/Materials Tank | -8/Storage Tank | -8/Recycling Scavenger-Tank | -8/Scraptown Scavenger-Scrapper | -6/Factory Scavenger-Mutant | -6/Lower Caves Scavenger-Mutant | -6/Lower Caves Scavenger-Mutant | -5/Factory Commander-Mutant | -5/Extension Commander-Mutant | -5/Cetus Commander-Mutant | -5/Archives Commander-Mutant | -5/Hub_04(d) Scavenger-Sprinter | -4/Factory Scavenger-Sprinter | -4/Upper Caves Scavenger-Sprinter | -4/Upper Caves Hacker-Sprinter | -3/Research Hacker-Sprinter | -3/Armory Hacker-Sprinter | -3/Lab Hacker-Sprinter | -2/Research Hacker-Sprinter | -2/Quarantine Hacker-Sprinter | -2/Section 7 Alien-Sprinter | -1/Access Alien-Sprinter | -1/Command Alien-Sprinter | -1/Access_0 Resources | -11 -10 -10 -9 -9 -9 -8 -8 -8 -8 -8 -6 -6 -6 -5 -5 -5 -5 -5 -4 -4 -4 -3 -3 -3 -2 -2 -2 -1 -1 -1 ----------- Run | Yrd Mat Min Mat Min Exi Min Mat Sto Rec Scr Fac Low Low Fac Ext Cet Arc Hub Fac Upp Upp Res Arm Lab Res Qua Sec Acc Com Ac0 Matter Collected 21717 | 171 115 99 783 580 1175 492 557 1794 94 7638 521 154 125 265 341 38 101 111 310 700 . 338 1312 . 705 100 131 95 1722 1150 Remotely 2073 | . . . . . . . . . . 2073 . . . . . . . . . . . . . . . . . . . . Salvage Created 25060 | . 556 71 1123 519 134 442 927 1668 389 5371 684 518 258 275 1289 106 213 594 335 775 . 319 567 . 711 234 198 353 2148 4283 Parts 1150 | . 37 7 81 28 5 26 44 87 15 240 30 25 8 11 49 6 21 26 7 19 . 11 19 . 30 12 11 6 55 234 Haulers Intercepted 26 | . 1 . 5 . . . 3 5 . . 2 . . 1 . . . 1 . . . 2 . . 4 . . 2 . . Recyclers Shooed 15 | . 2 . 2 2 . 1 1 . 1 . 4 . . . 1 . . . 1 . . . . . . . . . . . Parts Field Recycled . | . . . . . . . . . . . . . . . . . . . . . . . . . . . . . . . Retrieved Matter . | . . . . . . . . . . . . . . . . . . . . . . . . . . . . . . . Parts Self-Destructed 15 | . . . . . . . . . . . . 10 1 . . . . . . 4 . . . . . . . . . . Prevented . | . . . . . . . . . . . . . . . . . . . . . . . . . . . . . . . Kills | -11 -10 -10 -9 -9 -9 -8 -8 -8 -8 -8 -6 -6 -6 -5 -5 -5 -5 -5 -4 -4 -4 -3 -3 -3 -2 -2 -2 -1 -1 -1 ------- Run | Yrd Mat Min Mat Min Exi Min Mat Sto Rec Scr Fac Low Low Fac Ext Cet Arc Hub Fac Upp Upp Res Arm Lab Res Qua Sec Acc Com Ac0 Combat Hostiles Destroyed 365 | . 19 5 21 9 1 9 12 23 1 124 3 1 1 5 19 . . 6 . 13 . 1 13 . . 1 2 1 27 48 Melee 82 | . . . . . . . . . . . . 1 . . 10 . . 4 . . . 1 1 . . 1 2 . 15 47 Guns 105 | . 17 5 20 9 1 9 9 23 1 7 2 . . . 1 . . . . . . . 1 . . . . . . . Cannons 131 | . . . 1 . . . . . . 117 . . . . 4 . . 2 . . . . . . . . . . 7 . AOE 39 | . . . . . . . 3 . . . 1 . 1 5 2 . . . . 13 . . 11 . . . . . 3 . Classes Destroyed 36 | . 4 2 4 . 1 1 3 . . 11 1 3 . . 1 . . . 1 . . 1 1 . . . 1 . 1 . Worker 12 | . . . 2 . . 1 2 1 . . . . . . . . . 1 . . . 1 . . . 1 . . 3 . Builder 5 | . . . . . . . 1 . . . 3 . . . . . . 1 . . . . . . . . . . . . Tunneler 4 | . . 1 2 . . . . . . . 1 . . . . . . . . . . . . . . . . . . . Hauler 26 | . 1 . 5 . . . 3 5 . . 2 . . 1 . . . 1 . . . 2 . . 4 . . 2 . . Recycler 27 | . . . 1 4 . 3 2 2 5 . 2 . . 1 1 . . . 2 . . . . . 2 1 . . 1 . Minesweeper 1 | . . . . . . . . . . . . 1 . . . . . . . . . . . . . . . . . . Mechanic 1 | . . . . . . . . . . . . . . . . . . . 1 . . . . . . . . . . . Operator 14 | . . . . . . . 1 2 . 2 . . . . 1 . 6 . . . . . . . . . . 1 1 . Drone 1 | . . . . . . . . . . . . . . . . . . . . . . 1 . . . . . . . . Turret 1 | . . . . . . . . . . 1 . . . . . . . . . . . . . . . . . . . . Watcher 23 | . 1 . 3 . . . 1 2 . . . . . 1 . 1 . 1 1 . . 2 2 . 3 1 1 1 2 . Swarmer 58 | . 12 4 10 9 . 6 . 1 . . . . . 5 . . . 1 . 6 . . . . . . . . 4 . Grunt 64 | . 7 . 5 . . 2 7 9 . . 1 . . . 11 . . 3 . 6 . . 5 . . . . . 8 . Brawler 3 | . . . . . . 1 . 1 . . . . . . . . . . . . . . 1 . . . . . . . Duelist 7 | . . . 1 . . . 1 . . . . . . . 2 . . . . . . . 3 . . . . . . . Sentry 27 | . . . 5 . . . 3 12 1 . . . . . 4 . . 2 . . . . . . . . . . . . Specialist 2 | . . . . . . . . . . . 1 . . . . . . . . . . . 1 . . . . . . . Hunter 7 | . . . . . . . 1 . . . 1 . 1 . . . . . . . . . . . . . . . 4 . Programmer 9 | . . . . . . . . . . . . . . . . . . . . . . . 2 . . 1 . 1 5 . Heavy 1 | . . . . . . . . . . . . . . . . . . . . . . . . . . . . . 1 . Behemoth 3 | . . . . . . . . . . . . . . . 2 . . . . 1 . . . . . . . . . . Armor Guard 1 | . . . . . . . . . . . . . . . . . . . . . . . 1 . . . . . . . M Guard 1 | . . . . . . . . . . . . . . . . . . . . . . . . . . . . . 1 . Enhanced Grunt 32 | . . . . . . . . . . . . . . . . . . . . . . . . . . . . . . 32 Enhanced Sentry 2 | . . . . . . . . . . . . . . . . . . . . . . . . . . . . . . 2 Enhanced Hunter 7 | . . . . . . . . . . . . . . . . . . . . . . . . . . . . . . 7 Combat Programmer 2 | . . . . . . . . . . . . . . . . . . . . . . . . . . . . . 2 . Executioner 2 | . . . . . . . . . . . . . . . . . . . . . . . . . . . 2 . . . Bolteater 9 | . . . . . . . . . . 9 . . . . . . . . . . . . . . . . . . . . Federalist 10 | . . . . . . . . . . 10 . . . . . . . . . . . . . . . . . . . . Explorer 6 | . . . . . . . . . . 6 . . . . . . . . . . . . . . . . . . . . Ranger 8 | . . . . . . . . . . 8 . . . . . . . . . . . . . . . . . . . . Guru 10 | . . . . . . . . . . 10 . . . . . . . . . . . . . . . . . . . . Scientist 10 | . . . . . . . . . . 10 . . . . . . . . . . . . . . . . . . . . Scrapper 46 | . . . . . . . . . . 46 . . . . . . . . . . . . . . . . . . . . Elite 27 | . . . . . . . . . . 27 . . . . . . . . . . . . . . . . . . . . Zionite 2 | . . . . . 1 . . . . 1 . . . . . . . . . . . . . . . . . . . . Decomposer 3 | . . . . . . . . . . . . 3 . . . . . . . . . . . . . . . . . . Packrat 4 | . . . . . . . . . . . . . 1 . . . . . . 3 . . . . . . . . . . Samaritan 15 | . . . . . . . . . . . . 8 . . . . . . . 7 . . . . . . . . . . Tinkerer 1 | . . . . . . . . . . 1 . . . . . . . . . . . . . . . . . . . . Master Thief 1 | . . . . . . . . . . . . 1 . . . . . . . . . . . . . . . . . . Assembled 1 | . . 1 . . . . . . . . . . . . . . . . . . . . . . . . . . . . Thug 8 | . . . . . . . . . . 5 . . 2 . . . . 1 . . . . . . . . . . . . Savage 1 | . . . . . . . . . . 1 . . . . . . . . . . . . . . . . . . . . Mutant 3 | . . . . . . . . . . 1 . 1 1 . . . . . . . . . . . . . . . . . Best Kill Streak 12 | . 3 2 7 4 1 3 5 4 3 7 3 1 1 6 3 1 4 4 2 4 . 2 6 . 2 1 2 2 12 8 Combat Bots Only 8 | . 3 2 5 3 1 3 4 3 1 7 2 1 1 5 3 . . 2 . 4 . 1 6 . . 1 2 1 6 8 Max Kills in Single Turn 4 | . 1 1 2 2 1 1 4 1 1 2 2 1 1 3 2 1 1 1 1 2 . 1 2 . 1 1 1 1 3 2 Gunslinging 1 | . . . . 1 . . 1 . . . 1 . . . . . . . . . . . . . . . . . . . Exploded 3 | . . . . . . . 3 . . . 1 . 1 3 2 . . . . 2 . . 2 . . . . . 2 . Melee 2 | . . . . . . . . . . . . 1 . . 1 . . 1 . . . 1 1 . . 1 1 . 1 2 Uniques/NPCs Destroyed 13 | . . . . 1 1 . . . . 1 . . . . . 1 . . . . . . . . . . . . 2 7 YI-UF0 (-9/Mines) 8R-AWN (-9/Exiles) Triborg (-8/Scraptown) A7 (-5/Cetus) MAIN.C Shell (-1/Command) MAIN.C (-1/Command) A8 (-1/Access_0) A6 (-1/Access_0) A5 (-1/Access_0) A4 (-1/Access_0) A2 (-1/Access_0) A3 (-1/Access_0) Architect (-1/Access_0) Combat | -11 -10 -10 -9 -9 -9 -8 -8 -8 -8 -8 -6 -6 -6 -5 -5 -5 -5 -5 -4 -4 -4 -3 -3 -3 -2 -2 -2 -1 -1 -1 -------- Run | Yrd Mat Min Mat Min Exi Min Mat Sto Rec Scr Fac Low Low Fac Ext Cet Arc Hub Fac Upp Upp Res Arm Lab Res Qua Sec Acc Com Ac0 Hostile Shots Fired 1645 | . 58 17 96 24 46 34 47 70 2 211 120 15 . 4 71 5 7 14 4 15 . 36 14 . 18 . 51 3 204 459 Missed 742 | . 16 3 24 6 6 13 10 18 1 50 31 10 . 1 21 2 3 4 3 8 . 16 7 . 9 . 23 2 114 341 Deflected 6 | . . . . . . . . . . . . . . . . . . 1 . . . . . . 1 . . . 2 2 Damage Taken 20148 | . 431 206 813 143 717 206 576 728 16 3770 1613 53 5 52 1140 130 120 303 13 176 . 354 214 . 250 10 1341 59 2723 3986 Core 2950 | . 70 6 161 8 123 8 81 47 . 336 166 22 5 6 145 10 16 31 . 5 . 78 42 . 55 10 735 37 415 332 Absorbed by Shields 118 | . . . . . . . . 26 . . . . . . 59 28 . . 5 . . . . . . . . . . . Reduced by Siege Mode 447 | . . . . . . . . . . 447 . . . . . . . . . . . . . . . . . . . . Redirected to Shielding 927 | . . . . . . . . . . . . . . . . . . . . 27 . 20 . . 43 . 27 . 261 549 Regen/Repaired (Parts) 4774 | . . . . . . . . . . . 178 . . . . . . . . . . 217 83 . 136 15 401 . 2026 1718 Core Remaining (%) 63 | 100 . 69 . . . 25 . . . 15 . . 77 . . . . 79 . . 99 . . 90 . . 52 . . 31 Volleys Fired 971 | . 73 16 85 27 25 27 42 78 7 318 46 6 3 11 35 4 . 7 . 27 . 8 63 . 24 . . . 20 19 Largest 3 | . 2 2 3 3 3 3 3 3 3 3 2 2 1 2 2 1 . 1 . 1 . 1 1 . 2 . . . 1 1 Hottest 170 | . 100 100 120 71 75 73 73 75 75 75 160 110 80 170 170 90 . 90 . 80 . 40 80 . 70 . . . 85 85 Shots Fired 1796 | . 135 27 213 69 75 81 122 234 21 497 79 10 3 12 43 5 . 7 . 27 . 8 63 . 26 . . . 20 19 Gun 1209 | . 135 22 206 69 75 81 120 234 21 81 76 10 . 4 14 . . . . . . 8 29 . 24 . . . . . Cannon 489 | . . . 5 . . . . . . 412 . . . 2 23 5 . 7 . . . . . . . . . . 16 19 Launcher 87 | . . . 2 . . . 2 . . . 3 . 3 6 6 . . . . 27 . . 34 . . . . . 4 . Special 11 | . . 5 . . . . . . . 4 . . . . . . . . . . . . . . 2 . . . . . Kinetic 1422 | . . 11 173 69 75 81 120 234 21 493 41 6 . . . . . 2 . . . 8 29 . 24 . . . 16 19 Thermal 283 | . 135 16 38 . . . . . . . 35 4 . 6 37 5 . 5 . . . . . . 2 . . . . . Explosive 87 | . . . 2 . . . 2 . . . 3 . 3 6 6 . . . . 27 . . 34 . . . . . 4 . Electromagnetic . | . . . . . . . . . . . . . . . . . . . . . . . . . . . . . . . Robot Hit Streak 39 | . 13 5 14 7 8 8 11 17 9 39 17 3 . 3 7 2 . 1 . . . . 7 . . . . . 9 11 Robot Miss Streak 7 | . 4 3 4 7 2 4 5 4 1 5 2 2 . 2 2 2 . 2 . . . . 4 . . . . . . 2 Penetration Max 2 | . . . . . . . . . . 1 . . . . . . . 2 . . . . 1 . . . . . 2 1 Secondary Targets 18 | . 3 . 6 3 . 2 2 1 . . 1 . . . . . . . . . . . . . . . . . . . Max Gunslinging Chain 2 | . 1 . 1 2 . 1 1 1 . . 1 . . . . . . . . . . . . . . . . . . . Autonomous 145 | . . . . . . . . . . 128 . . . . 1 . . 4 . . . 1 . . . . . . 6 5 Shots Hit Robots 1468 | . 87 11 130 36 54 44 77 159 10 313 56 24 9 5 65 17 8 11 5 11 . 12 22 . 15 6 16 10 78 177 Core Hits 775 | . 29 8 53 19 14 16 42 59 8 126 39 10 5 12 38 2 4 10 2 41 . 3 57 . 7 4 5 3 54 105 Critical Kills 8 | . . 1 . . . 1 1 1 . . . . . . 2 . . 1 . . . . 1 . . . . . . . Critical Parts Destroyed 6 | . . . 1 . . 2 1 . . . . . . . . . . 1 . . . . 1 . . . . . . . Critical Strikes 78 | . 11 2 3 . . 3 2 1 . 21 3 2 . . 3 . . 2 . . . 1 6 . . . . . 8 10 Burn 18 | . 11 1 2 . . . . . . . 3 . . . 1 . . . . . . . . . . . . . . . Meltdown 2 | . . . . . . . . . . . . . . . 2 . . . . . . . . . . . . . . . Destroy 15 | . . 1 1 . . 3 2 1 . . . . . . . . . 2 . . . 1 4 . . . . . . . Blast 31 | . . . . . . . . . . 21 . . . . . . . . . . . . . . . . . . 6 4 Melee Attacks 713 | . . . 1 . . . . . . 13 45 22 9 5 50 15 8 9 18 14 . 35 34 8 40 14 47 22 112 192 Impact . | . . . . . . . . . . . . . . . . . . . . . . . . . . . . . . . Slashing 712 | . . . 1 . . . . . . 13 45 22 9 5 50 15 7 9 18 14 . 35 34 8 40 14 47 22 112 192 Piercing . | . . . . . . . . . . . . . . . . . . . . . . . . . . . . . . . Sneak Attacks 110 | . . . . . . . . . . 1 8 17 9 2 5 14 8 2 3 11 . 4 1 . 9 3 . 3 3 7 Combat Hostiles 19 | . . . . . . . . . . . . . . . 5 . 1 1 . . . 1 1 . . 1 . . 2 7 Follow-up Attacks 17 | . . . . . . . . . . . 1 . . . . . . . . . . . . . . . . . 6 10 Damage Inflicted 93058 | . 1118 166 1918 626 865 803 1489 2808 262 26985 2399 1504 957 1025 3321 1331 1046 1071 518 3664 . 1243 3958 . 1691 652 1108 1182 10746 18602 Guns 11360 | . 1107 134 1751 604 865 719 1182 2751 180 815 749 135 . 18 265 . . . . . . 17 68 . . . . . . . Cannons 31059 | . . . 83 . . . . . . 26103 . . . 31 593 129 . 525 . . . 79 . . . . . . 1876 1640 Explosions 10095 | . . . 13 . . . 284 . . . 522 . 321 790 522 . . . . 2486 . . 3226 . . . . . 1931 . Melee 40143 | . . . . . . . . . . 67 1128 1369 636 186 1922 1202 1046 546 518 1178 . 1147 664 . 1691 652 1108 1182 6939 16962 Ramming 401 | . 11 32 71 22 . 84 23 57 82 . . . . . 19 . . . . . . . . . . . . . . . Kinetic 37913 | . . 58 1464 604 865 719 1182 2751 180 26918 302 89 . . . . . 106 . . . 17 68 . . . . . 1390 1200 Thermal 3053 | . 1107 76 370 . . . . . . . 447 46 . 49 766 129 . 63 . . . . . . . . . . . . Explosive 10095 | . . . 13 . . . 284 . . . 522 . 321 790 522 . . . . 2486 . . 3226 . . . . . 1931 . Electromagnetic . | . . . . . . . . . . . . . . . . . . . . . . . . . . . . . . . Impact . | . . . . . . . . . . . . . . . . . . . . . . . . . . . . . . . Slashing 40143 | . . . . . . . . . . 67 1128 1369 636 186 1922 1202 1046 546 518 1178 . 1147 664 . 1691 652 1108 1182 6939 16962 Piercing . | . . . . . . . . . . . . . . . . . . . . . . . . . . . . . . . Phasic 1453 | . . . . . . . . . . . . . . . 92 . . 356 . . . 79 . . . . . . 486 440 Highest Corruption 4 | . 1 1 . . . . . 1 1 2 . . . 2 2 3 3 4 . . . . 2 2 1 1 . . . . Average Corruption 1 | . 1 1 . . . . . 1 1 1 . . . 2 2 2 2 4 . . . . 1 2 1 1 . . . . Corruption Purged 4 | . . . . . . . . . . . . . . . . . 3 . . . . . . . . 1 . . . . Corruption Blocked . | . . . . . . . . . . . . . . . . . . . . . . . . . . . . . . . Effects 102 | . 1 16 . . . . . 7 8 21 . . . 4 24 4 3 3 . . . . 6 2 2 1 . . . . Message Errors 26 | . . 2 . . . . . 1 4 4 . . . 2 7 1 . 2 . . . . 2 1 . . . . . . Matter Fused 22 | . . 4 . . . . . 2 . 7 . . . . 4 1 . 1 . . . . 1 1 1 . . . . . Heat Flow Errors 14 | . 1 3 . . . . . 1 2 2 . . . 2 1 . 2 . . . . . . . . . . . . . Energy Discharges 9 | . . 2 . . . . . 1 . 2 . . . . 2 1 1 . . . . . . . . . . . . . Parts Rejected 1 | . . . . . . . . . . . . . . . 1 . . . . . . . . . . . . . . . Parts Fused 1 | . . . . . . . . . . . . . . . . . . . . . . . . . 1 . . . . . Data Loss (minor) 16 | . . 4 . . . . . 1 2 4 . . . . 2 . . . . . . . 2 . . 1 . . . . Data Loss (major) 4 | . . 1 . . . . . 1 . . . . . . 2 . . . . . . . . . . . . . . . Misfires 4 | . . . . . . . . . . . . . . . 3 1 . . . . . . . . . . . . . . Alerts 3 | . . . . . . . . . . 1 . . . . 1 . . . . . . . 1 . . . . . . . Weapon Failures 2 | . . . . . . . . . . 1 . . . . 1 . . . . . . . . . . . . . . . Overload Shots . | . . . . . . . . . . . . . . . . . . . . . . . . . . . . . . . Overflow Damage 8834 | . . . . . . 2 . . 5 3360 279 335 126 18 81 212 336 127 242 808 . 374 177 . 217 37 59 287 803 949 Projectiles 3469 | . . . . . . . . . . 3360 . . . . . 8 . . . . . . . . . . . . 84 17 Explosions 258 | . . . . . . . . . . . . . 54 18 . . . . . 178 . . 8 . . . . . . . Melee 5107 | . . . . . . 2 . . 5 . 279 335 72 . 81 204 336 127 242 630 . 374 169 . 217 37 59 287 719 932 Knockbacks 74 | . . . 1 1 . . . 1 1 53 . . . . . . . 1 . . . . . . . . . . 2 14 Impact 4 | . . . 1 1 . . . 1 1 . . . . . . . . . . . . . . . . . . . . . Kinetic 70 | . . . . . . . . . . 53 . . . . . . . 1 . . . . . . . . . . 2 14 Secondary . | . . . . . . . . . . . . . . . . . . . . . . . . . . . . . . . Self-Inflicted Damage 23 | . . . . . . . . . . . 23 . . . . . . . . . . . . . . . . . . . Shots 1 | . . . . . . . . . . . 1 . . . . . . . . . . . . . . . . . . . Rammed 48 | . 1 6 9 5 . 6 3 10 8 . . . . . . . . . . . . . . . . . . . . . Targets Rammed 56 | . 4 7 11 5 . 6 4 10 8 . . . . . 1 . . . . . . . . . . . . . . . Kicked 4 | . 3 . . . . . . . . . . . . . 1 . . . . . . . . . . . . . . . Crushed 4 | . . 1 2 . . . 1 . . . . . . . . . . . . . . . . . . . . . . . Highest Temperature 335 | . 237 335 310 60 244 160 126 189 174 296 112 110 75 223 180 9 231 . . 12 . 15 118 . 239 56 162 138 110 80 Average Temperature 56 | . 54 73 90 13 159 54 35 18 90 65 32 51 37 60 63 9 119 . . 4 . 7 21 . 44 22 42 29 28 39 Received Heat Transfer 2329 | . 138 . 213 . . 45 252 346 . 493 45 . . . 428 27 9 48 . 30 . 18 39 . 18 . 72 . 36 72 Effects 1 | . . . . . 1 . . . . . . . . . . . . . . . . . . . . . . . . . Energy Bleed 1 | . . . . . 1 . . . . . . . . . . . . . . . . . . . . . . . . . Siege Activations 25 | . . . . . . . . . . 25 . . . . . . . . . . . . . . . . . . . . Total Turns 7241 | . . . . . . . . . . 7241 . . . . . . . . . . . . . . . . . . . . Longest Duration 2286 | . . . . . . . . . . 2286 . . . . . . . . . . . . . . . . . . . . Robots Corrupted 1 | . . . . . . 1 . . . . . . . . . . . . . . . . . . . . . . . . Combat Hostiles . | . . . . . . . . . . . . . . . . . . . . . . . . . . . . . . . Parts Fried 1 | . . . . . . . . . . . . . . . 1 . . . . . . . . . . . . . . . Impact Corruptions 2 | . . . . . . 1 . . 1 . . . . . . . . . . . . . . . . . . . . . Robots Melted 4 | . 2 . . . . . . . . . . . . . 2 . . . . . . . . . . . . . . . Combat Hostiles 4 | . 2 . . . . . . . . . . . . . 2 . . . . . . . . . . . . . . . Parts Melted 19 | . 5 . . . . . . . . 5 . 1 . . 6 . . 2 . . . . . . . . . . . . Heat Transferred 8496 | . 4046 296 1110 . . . . . . . 1132 100 . 100 1437 175 . 100 . . . . . . . . . . . . Parts Sabotaged . | . . . . . . . . . . . . . . . . . . . . . . . . . . . . . . . Parts Stolen 1 | . . . . . . . . . . . . 1 . . . . . . . . . . . . . . . . . . Parts Stripped 62 | . . . . . . . . . . . . . . . . . . . 6 13 . . . . . . . 12 21 10 Power Chain Reactions . | . . . . . . . . . . . . . . . . . . . . . . . . . . . . . . . Alert | -11 -10 -10 -9 -9 -9 -8 -8 -8 -8 -8 -6 -6 -6 -5 -5 -5 -5 -5 -4 -4 -4 -3 -3 -3 -2 -2 -2 -1 -1 -1 ------- Run | Yrd Mat Min Mat Min Exi Min Mat Sto Rec Scr Fac Low Low Fac Ext Cet Arc Hub Fac Upp Upp Res Arm Lab Res Qua Sec Acc Com Ac0 Peak Influence 1256 | . 237 77 330 301 . 150 389 404 277 . 630 . . 940 845 734 517 1145 566 . . 608 1256 . 347 98 156 172 1088 . Initial 463 | . . 25 . 96 . . . 163 100 . . . . 95 460 412 293 . 463 . . 374 165 . . 33 . 34 109 . Average 244 | . 91 20 140 177 . 31 117 243 103 . 223 . . 519 538 634 138 852 501 . . 449 833 . 112 35 35 121 631 . Maximum Alert Level 4 | . 1 . 1 1 . . 1 2 1 . 2 . . 3 3 3 2 4 2 . . 2 4 . 1 . . . 4 . Low Security (%) 54 | . 95 100 66 65 . 100 72 24 87 . 63 . . 5 . . 73 7 . . . . 4 . 84 100 100 100 3 . Level 1 16 | . 4 . 33 34 . . 27 73 12 . 5 . . 20 34 . 14 5 . . . 20 2 . 15 . . . 1 . Level 2 12 | . . . . . . . . 1 . . 31 . . 41 43 52 12 3 100 . . 79 16 . . . . . 7 . Level 3 7 | . . . . . . . . . . . . . . 32 21 47 . 68 . . . . 66 . . . . . 10 . Level 4 7 | . . . . . . . . . . . . . . . . . . 15 . . . . 9 . . . . . 76 . Level 5 . | . . . . . . . . . . . . . . . . . . . . . . . . . . . . . . . High Security . | . . . . . . . . . . . . . . . . . . . . . . . . . . . . . . . Max Security . | . . . . . . . . . . . . . . . . . . . . . . . . . . . . . . . Squads Dispatched 65 | . 1 . 2 . . . 2 5 . . 6 . . 3 2 . . 8 1 . . 7 11 . 6 2 3 4 2 . Investigation 15 | . . . . . . . . 2 . . 1 . . 1 1 . . 2 . . . 4 3 . 1 . . . . . Extermination 13 | . . . . . . . . . . . 1 . . . . . . 1 1 . . . 3 . 2 2 2 . 1 . Reinforcement 28 | . 1 . 2 . . . 1 1 . . 4 . . 2 1 . . 1 . . . 3 3 . 3 . 1 4 1 . Assault 6 | . . . . . . . . 2 . . . . . . . . . 2 . . . . 2 . . . . . . . Garrison 3 | . . . . . . . 1 . . . . . . . . . . 2 . . . . . . . . . . . . Intercept . | . . . . . . . . . . . . . . . . . . . . . . . . . . . . . . . Searches Triggered . | . . . . . . . . . . . . . . . . . . . . . . . . . . . . . . . Construction Impeded 5 | . . . . . . . . . . . 2 . . 1 1 . . 1 . . . . . . . . . . . . Haulers Reinforced 4 | . . . . . . . . . . . . . . 1 . . . . . . . 2 . . 1 . . . . . Active Scanning Responses . | . . . . . . . . . . . . . . . . . . . . . . . . . . . . . . . Cargo Convoy Interrupts 1 | . . . . . . . . . . . 1 . . . . . . . . . . . . . . . . . . . Stealth | -11 -10 -10 -9 -9 -9 -8 -8 -8 -8 -8 -6 -6 -6 -5 -5 -5 -5 -5 -4 -4 -4 -3 -3 -3 -2 -2 -2 -1 -1 -1 --------- Run | Yrd Mat Min Mat Min Exi Min Mat Sto Rec Scr Fac Low Low Fac Ext Cet Arc Hub Fac Upp Upp Res Arm Lab Res Qua Sec Acc Com Ac0 Distress Signals 63 | . 2 . 6 . . . 4 2 . . 3 . . 1 5 2 . 2 . . . 7 2 . 6 . 2 . 19 . Communications Jammed . | . . . . . . . . . . . . . . . . . . . . . . . . . . . . . . . Distress Signals . | . . . . . . . . . . . . . . . . . . . . . . . . . . . . . . . Times Spotted 596 | . 30 5 45 12 1 10 18 34 1 66 35 5 . 17 34 9 3 18 3 12 . 14 36 . 26 9 38 8 50 57 Peak Tracking Total 16 | . 4 2 8 4 2 3 5 4 1 6 16 2 2 6 5 5 3 4 3 5 . 5 5 . 8 4 13 5 9 10 Tactical Retreats 54 | . 2 . . 1 . 1 . 3 . 4 2 . . 1 2 . . . 1 3 . 8 2 . 9 1 5 . 9 . Traps | -11 -10 -10 -9 -9 -9 -8 -8 -8 -8 -8 -6 -6 -6 -5 -5 -5 -5 -5 -4 -4 -4 -3 -3 -3 -2 -2 -2 -1 -1 -1 ------- Run | Yrd Mat Min Mat Min Exi Min Mat Sto Rec Scr Fac Low Low Fac Ext Cet Arc Hub Fac Upp Upp Res Arm Lab Res Qua Sec Acc Com Ac0 Traps Triggered 18 | . 1 . . . . . . 2 . . . . . 2 1 . . 1 3 . . 2 4 . 1 . . . 1 . Indirectly . | . . . . . . . . . . . . . . . . . . . . . . . . . . . . . . . Trap Hack Attempts . | . . . . . . . . . . . . . . . . . . . . . . . . . . . . . . . Triggered . | . . . . . . . . . . . . . . . . . . . . . . . . . . . . . . . Disarmed . | . . . . . . . . . . . . . . . . . . . . . . . . . . . . . . . Reprogrammed 6 | . . . . . . . . 6 . . . . . . . . . . . . . . . . . . . . . . Reused 6 | . . . . . 3 . . . . . . . . . . . . 1 . . . 2 . . . . . . . . Traps Extracted 3 | . . . . . . . . . . . . . . . . . . 1 . . . 2 . . . . . . . . Installed 10 | . . . . . 3 . . . . . . . . . . . . 3 . . . 4 . . . . . . . . Triggered 5 | . . . . . 1 . . . . . . 1 . . . . . 1 . . . 2 . . . . . . . . Most Traps Carried 5 | . . 3 3 3 3 . . . . . . 5 5 5 5 5 5 5 3 3 3 3 . . . . . . . . Machines | -11 -10 -10 -9 -9 -9 -8 -8 -8 -8 -8 -6 -6 -6 -5 -5 -5 -5 -5 -4 -4 -4 -3 -3 -3 -2 -2 -2 -1 -1 -1 ---------- Run | Yrd Mat Min Mat Min Exi Min Mat Sto Rec Scr Fac Low Low Fac Ext Cet Arc Hub Fac Upp Upp Res Arm Lab Res Qua Sec Acc Com Ac0 Machines Disabled 77 | . . . 1 1 . . . 2 . 22 1 . . 6 2 . 3 4 . . . . 13 2 . 2 4 . 4 10 Max in Single Turn 2 | . . . 1 1 . . . 1 . 1 . . . 2 1 . . . . . . . 1 1 . 1 1 . 1 1 Garrison Access 7 | . . . . . . . . 1 . . . . . . . . . 1 . . . 2 . . 2 1 . . . . Network Hub 2 | . . . . . . . . . . . . . . . . . . 2 . . . . . . . . . . . . Machines Repaired . | . . . . . . . . . . . . . . . . . . . . . . . . . . . . . . . Machines Dismantled . | . . . . . . . . . . . . . . . . . . . . . . . . . . . . . . . Machines Sabotaged 1 | . . . . . . . . . . . . . . . . . . 1 . . . . . . . . . . . . Overloaded Fab Kills . | . . . . . . . . . . . . . . . . . . . . . . . . . . . . . . . Hacking | -11 -10 -10 -9 -9 -9 -8 -8 -8 -8 -8 -6 -6 -6 -5 -5 -5 -5 -5 -4 -4 -4 -3 -3 -3 -2 -2 -2 -1 -1 -1 --------- Run | Yrd Mat Min Mat Min Exi Min Mat Sto Rec Scr Fac Low Low Fac Ext Cet Arc Hub Fac Upp Upp Res Arm Lab Res Qua Sec Acc Com Ac0 Machines Accessed 130 | . 6 . 5 . 2 . 2 13 6 3 5 . . 6 7 . . 3 1 1 . 13 12 . 16 9 8 6 4 2 Terminals 91 | . 6 . 4 . . . 2 10 3 . 4 . . 4 7 . . 2 1 . . 6 7 . 12 7 8 5 3 . Fabricators 6 | . . . . . . . . . . . . . . 1 . . . . . . . 1 3 . 1 . . . . . Repair Stations 12 | . . . 1 . . . . 1 . . 1 . . 1 . . . . . . . 3 2 . 1 1 . . 1 . Recycling Units 6 | . . . . . . . . 1 3 . . . . . . . . . . . . 1 . . . . . 1 . . Scanalyzers . | . . . . . . . . . . . . . . . . . . . . . . . . . . . . . . . Garrison Access 7 | . . . . . . . . 1 . . . . . . . . . 1 . . . 2 . . 2 1 . . . . Total Hacks 445 | . 20 . 15 . 2 . 6 25 19 10 12 . . 9 23 . . 7 8 6 . 44 43 . 71 30 40 16 18 21 Successful 266 | . 8 . 7 . 2 . 2 14 8 10 4 . . 2 8 . . 4 2 6 . 20 21 . 45 25 34 10 13 21 Failed 178 | . 12 . 8 . . . 4 11 11 . 8 . . 7 15 . . 3 6 . . 23 22 . 26 5 6 6 5 . Catastrophic 22 | . 2 . 1 . . . 1 2 . . 2 . . 3 4 . . . 1 . . . 1 . 3 . 2 . . . Database Lockouts 1 | . . . . . . . . . . . . . . . . . . . . . . 1 . . . . . . . . Manual 258 | . 20 . 10 . 1 . 6 16 18 . 7 . . 6 19 1 . 5 8 . . 18 19 . 42 20 29 6 7 . Terminals 331 | . 20 . 12 . . . 6 22 13 . 11 . . 7 23 . . 5 8 . . 26 24 . 60 27 40 15 12 . Fabricators 20 | . . . . . . . . . . . . . . 1 . . . . . . . 4 10 . 5 . . . . . Repair Stations 34 | . . . 3 . . . . 1 . . 1 . . 1 . . . . . . . 9 9 . 2 2 . . 6 . Recycling Units 10 | . . . . . . . . 1 6 . . . . . . . . . . . . 2 . . . . . 1 . . Scanalyzers . | . . . . . . . . . . . . . . . . . . . . . . . . . . . . . . . Garrison Access 11 | . . . . . . . . 1 . . . . . . . . . 2 . . . 3 . . 4 1 . . . . Terminal Hacks 136 | . 2 . 1 . 2 . 1 10 1 10 2 . . 2 7 . . 1 1 6 . 6 6 . 24 9 16 5 3 21 Record 26 | . . . . . 1 . . . . 1 . . . . . . . . . 6 . . 1 . . . . . . 17 Part Schematic 6 | . 1 . . . . . . . . . . . . . . . . . . . . 2 . . 1 1 1 . . . Robot Analysis 9 | . 1 . . . . . . . . 8 . . . . . . . . . . . . . . . . . . . . Prototype ID Bank 4 | . . . . . . . . . 1 . . . . . . . . . . . . . . . 1 . 2 . . . Open Door 15 | . . . . . . . . 4 . 1 . . . 1 3 . . . . . . . 1 . . . 1 3 1 . Level Access Points 2 | . . . . . . . . . . . . . . . . . . 1 . . . . . . . . . . 1 . Branch Access Points 6 | . . . . . . . 1 . . . 1 . . 1 . . . . 1 . . 1 . . 1 . . . . . Terminal Index 3 | . . . . . . . . . . . . . . . . . . . . . . . 1 . 1 1 . . . . Fabricator Index 1 | . . . . . . . . . . . . . . . . . . . . . . . . . 1 . . . . . Repair Station Index 1 | . . . . . . . . . . . . . . . . . . . . . . . . . 1 . . . . . Alert Level 9 | . . . . . . . . 1 . . . . . . 1 . . . . . . 1 . . 3 . 2 1 . . Unreport Threat 15 | . . . 1 . . . . 2 . . . . . . 3 . . . . . . 1 2 . 3 1 2 . . . Locate Traps 2 | . . . . . . . . . . . . . . . . . . . . . . . . . 2 . . . . . Reprogram Traps 1 | . . . . . . . . 1 . . . . . . . . . . . . . . . . . . . . . . Maintenance Status 1 | . . . . . . . . . . . . . . . . . . . . . . . . . 1 . . . . . Patrol Status 5 | . . . . . . . . . . . . . . . . . . . . . . . 1 . 2 . 1 . 1 . Recall Investigation 1 | . . . . . . . . . . . . . . . . . . . . . . . . . 1 . . . . . Recall Extermination 1 | . . . . . . . . . . . . . . . . . . . . . . . . . . 1 . . . . Recall Reinforcements 2 | . . . . . . . . . . . . . . . . . . . . . . . . . 1 . 1 . . . Hauler Manifests 2 | . . . . . . . . . . . . . . . . . . . . . . . . . 1 1 . . . . Zone Layout 19 | . . . . . . . . 2 . . 1 . . . . . . . . . . 1 . . 4 4 6 1 . . Derelict Proto ID Bank 1 | . . . . . 1 . . . . . . . . . . . . . . . . . . . . . . . . . Gate Test 138-A 1 | . . . . . . . . . . . . . . . . . . . . . . . . . . . . . . 1 Gate Test 138-B 1 | . . . . . . . . . . . . . . . . . . . . . . . . . . . . . . 1 Gate Test 138-C 1 | . . . . . . . . . . . . . . . . . . . . . . . . . . . . . . 1 Gate Test 138-END 1 | . . . . . . . . . . . . . . . . . . . . . . . . . . . . . . 1 Fabricator Hacks 12 | . . . . . . . . . . . . . . . . . . . . . . 2 6 . 4 . . . . . Network Status 1 | . . . . . . . . . . . . . . . . . . . . . . . 1 . . . . . . . Load Schematic 6 | . . . . . . . . . . . . . . . . . . . . . . 1 3 . 2 . . . . . Build 5 | . . . . . . . . . . . . . . . . . . . . . . 1 2 . 2 . . . . . Repair Station Hacks 17 | . . . 1 . . . . . . . . . . . . . . . . . . 3 5 . 2 2 . . 4 . Scan Component 10 | . . . 1 . . . . . . . . . . . . . . . . . . 2 3 . 1 1 . . 2 . Repair 7 | . . . . . . . . . . . . . . . . . . . . . . 1 2 . 1 1 . . 2 . Recycling Unit Hacks 2 | . . . . . . . . . . . . . . . . . . . . . . 1 . . . . . 1 . . Retrieve Components 2 | . . . . . . . . . . . . . . . . . . . . . . 1 . . . . . 1 . . Scanalyzer . | . . . . . . . . . . . . . . . . . . . . . . . . . . . . . . . Garrison Access Hacks 7 | . . . . . . . . 1 . . . . . . . . . 1 . . . 2 . . 2 1 . . . . Seal Access 7 | . . . . . . . . 1 . . . . . . . . . 1 . . . 2 . . 2 1 . . . . Unauthorized Hacks 92 | . 6 . 5 . . . 1 3 7 . 2 . . . 1 . . 2 1 . . 6 4 . 13 13 18 4 6 . Terminals 79 | . 6 . 5 . . . 1 2 4 . 1 . . . 1 . . 2 1 . . 2 1 . 12 13 18 4 6 . Track 4 | . . . . . . . . . . . . . . . . . . . . . . . . . 1 2 1 . . . Assimilate 4 | . . . . . . . . . . . . . . . . . . . . . . . 1 . 1 1 . 1 . . Botnet 23 | . 1 . 1 . . . 1 1 2 . 1 . . . 1 . . . 1 . . 2 . . 3 2 4 1 2 . Disrupt 8 | . . . . . . . . . . . . . . . . . . . . . . . . . 1 1 5 . 1 . Operators 7 | . 1 . 1 . . . . . . . . . . . . . . . . . . . . . 1 2 1 . 1 . Skim 31 | . 4 . 3 . . . . 1 2 . . . . . . . . . . . . . . . 5 5 7 2 2 . Sabotage 2 | . . . . . . . . . . . . . . . . . . 2 . . . . . . . . . . . . Fabricators 5 | . . . . . . . . . . . . . . . . . . . . . . 1 3 . 1 . . . . . Prioritize 4 | . . . . . . . . . . . . . . . . . . . . . . 1 2 . 1 . . . . . Recompile 1 | . . . . . . . . . . . . . . . . . . . . . . . 1 . . . . . . . Repair Stations 4 | . . . . . . . . . . . 1 . . . . . . . . . . 3 . . . . . . . . Patch 4 | . . . . . . . . . . . 1 . . . . . . . . . . 3 . . . . . . . . Recycling Units 4 | . . . . . . . . 1 3 . . . . . . . . . . . . . . . . . . . . . Tunnel 4 | . . . . . . . . 1 3 . . . . . . . . . . . . . . . . . . . . . Scanalyzers . | . . . . . . . . . . . . . . . . . . . . . . . . . . . . . . . Garrison Access . | . . . . . . . . . . . . . . . . . . . . . . . . . . . . . . . Data Cores Recovered 1 | . . . . . . . . 1 . . . . . . . . . . . . . . . . . . . . . . Used . | . . . . . . . . . . . . . . . . . . . . . . . . . . . . . . . Hacking Detections 87 | . 6 . 5 . . . 2 9 4 . 4 . . 5 4 . . 1 1 . . 9 5 . 14 5 7 2 4 . Full Trace Events 5 | . . . . . . . . 2 . . . . . . . . . . . . . 1 1 . 1 . . . . . Feedback Events 1 | . . . . . . . . 1 . . . . . . . . . . . . . . . . . . . . . . Corruption 1 | . . . . . . . . 1 . . . . . . . . . . . . . . . . . . . . . . Feedback Blocked . | . . . . . . . . . . . . . . . . . . . . . . . . . . . . . . . Robot Schematics Acquired . | . . . . . . . . . . . . . . . . . . . . . . . . . . . . . . . Robots Built . | . . . . . . . . . . . . . . . . . . . . . . . . . . . . . . . Authchips . | . . . . . . . . . . . . . . . . . . . . . . . . . . . . . . . Time . | . . . . . . . . . . . . . . . . . . . . . . . . . . . . . . . Total Robot Build Rating . | . . . . . . . . . . . . . . . . . . . . . . . . . . . . . . . Part Schematics Acquired 33 | . 1 . . . . . . . . 5 13 5 . 4 . . . . . . . 2 . . 1 1 1 . . . Parts Built 5 | . . . . . . . . . . . . . . . . . . . . . . 1 2 . 2 . . . . . Authchips 2 | . . . . . . . . . . . . . . . . . . . . . . . 1 . 1 . . . . . Time 281 | . . . . . . . . . . . . . . . . . . . . . . 10 157 . 114 . . . . . Total Part Build Rating 28 | . . . . . . . . . . . . . . . . . . . . . . 2 16 . 10 . . . . . Parts Repaired 7 | . . . . . . . . . . . . . . . . . . . . . . 1 2 . 1 1 . . 2 . Time 230 | . . . . . . . . . . . . . . . . . . . . . . 56 68 . 12 49 . . 45 . Parts Recycled . | . . . . . . . . . . . . . . . . . . . . . . . . . . . . . . . Recycled Matter . | . . . . . . . . . . . . . . . . . . . . . . . . . . . . . . . Retrieved Matter . | . . . . . . . . . . . . . . . . . . . . . . . . . . . . . . . Retrieved Components 3 | . . . . . . . . . . . . . . . . . . . . . . 1 . . . . . 2 . . Parts Scanalyzed . | . . . . . . . . . . . . . . . . . . . . . . . . . . . . . . . Part Schematics Acquired . | . . . . . . . . . . . . . . . . . . . . . . . . . . . . . . . Parts Damaged . | . . . . . . . . . . . . . . . . . . . . . . . . . . . . . . . Bothacking | -11 -10 -10 -9 -9 -9 -8 -8 -8 -8 -8 -6 -6 -6 -5 -5 -5 -5 -5 -4 -4 -4 -3 -3 -3 -2 -2 -2 -1 -1 -1 ------------ Run | Yrd Mat Min Mat Min Exi Min Mat Sto Rec Scr Fac Low Low Fac Ext Cet Arc Hub Fac Upp Upp Res Arm Lab Res Qua Sec Acc Com Ac0 Used RIF Installer . | . . . . . . . . . . . . . . . . . . . . . . . . . . . . . . . Robots Hacked 1 | . . . . . . . . . . . . . . . . . 1 . . . . . . . . . . . . . Non-combat 1 | . . . . . . . . . . . . . . . . . 1 . . . . . . . . . . . . . Combat . | . . . . . . . . . . . . . . . . . . . . . . . . . . . . . . . Robot Hacks Applied 1 | . . . . . . . . . . . . . . . . . 1 . . . . . . . . . . . . . check_alert 1 | . . . . . . . . . . . . . . . . . 1 . . . . . . . . . . . . . Relay Couplers Released . | . . . . . . . . . . . . . . . . . . . . . . . . . . . . . . . Fabnet Peak Effective % . | . . . . . . . . . . . . . . . . . . . . . . . . . . . . . . . Robots Rewired 28 | . . . . . . . . . . . . . . . 17 . . . . . . . 11 . . . . . . . Allies Hacked 4 | . . . . . . . . . . . . . . . . . . . . . . . 3 . 1 . . . . . Hacks Repelled . | . . . . . . . . . . . . . . . . . . . . . . . . . . . . . . . Allies | -11 -10 -10 -9 -9 -9 -8 -8 -8 -8 -8 -6 -6 -6 -5 -5 -5 -5 -5 -4 -4 -4 -3 -3 -3 -2 -2 -2 -1 -1 -1 -------- Run | Yrd Mat Min Mat Min Exi Min Mat Sto Rec Scr Fac Low Low Fac Ext Cet Arc Hub Fac Upp Upp Res Arm Lab Res Qua Sec Acc Com Ac0 Total Allies 46 | . . . . . . . . 2 . 3 . . . . 21 5 . . . . . . 12 . 1 1 . 1 . . Largest Group 21 | . . . . . . . . 2 2 3 3 3 3 3 20 21 20 19 . . . . 10 . 1 1 . 1 . . Highest-Rated Group 1216 | . . . . . . . . 62 62 280 280 272 272 269 935 1216 1127 1088 . . . . 518 . 45 10 . 26 . . Highest-Rated Ally 159 | . . . . . . . . 31 31 102 102 95 95 95 159 159 96 96 . . . . 56 . 45 10 . 26 . . Total Orders 31 | . . . . . . . . 1 . 4 4 . 2 2 2 . 1 4 . . . . 6 . . 2 . 3 . . STAY 17 | . . . . . . . . . . 3 2 . 1 1 1 . 1 2 . . . . 3 . . 1 . 2 . . FOLLOW 13 | . . . . . . . . . . 1 2 . 1 1 1 . . 2 . . . . 3 . . 1 . 1 . . EXPLORE 1 | . . . . . . . . 1 . . . . . . . . . . . . . . . . . . . . . . Ally Attacks 626 | . . . . . . . . . 5 28 77 23 4 51 75 81 36 130 . . . . 116 . . . . . . . Total Damage 20559 | . . . . . . . . . 107 418 3094 1225 134 1945 2415 2311 733 3905 . . . . 4272 . . . . . . . Kills 125 | . . . . . . . . . 2 3 28 3 1 20 13 9 4 27 . . . . 15 . . . . . . . Allies Corrupted 10 | . . . . . . . . 1 . . . . . . . . . 7 . . . . 1 . 1 . . . . . Allies Melted 1 | . . . . . . . . . . . . . . . . . . . . . . . 1 . . . . . . . Intel | -11 -10 -10 -9 -9 -9 -8 -8 -8 -8 -8 -6 -6 -6 -5 -5 -5 -5 -5 -4 -4 -4 -3 -3 -3 -2 -2 -2 -1 -1 -1 ------- Run | Yrd Mat Min Mat Min Exi Min Mat Sto Rec Scr Fac Low Low Fac Ext Cet Arc Hub Fac Upp Upp Res Arm Lab Res Qua Sec Acc Com Ac0 Robot Analysis Total 9 | . 1 . . . . . . . . 8 . . . . . . . . . . . . . . . . . . . . Derelict Logs Recovered 4 | . . 1 . . . . . . . . . 2 . . . . . . . 1 . . . . . . . . . . Drone Launches 2 | . . . . . . . . 2 . . . . . . . . . . . . . . . . . . . . . . Drone Recoveries . | . . . . . . . . . . . . . . . . . . . . . . . . . . . . . . . Exploration | -11 -10 -10 -9 -9 -9 -8 -8 -8 -8 -8 -6 -6 -6 -5 -5 -5 -5 -5 -4 -4 -4 -3 -3 -3 -2 -2 -2 -1 -1 -1 ------------- Run | Yrd Mat Min Mat Min Exi Min Mat Sto Rec Scr Fac Low Low Fac Ext Cet Arc Hub Fac Upp Upp Res Arm Lab Res Qua Sec Acc Com Ac0 Turns Passed 56058 | . 1466 1643 1722 701 1231 1336 791 2167 1025 26263 1339 1064 224 589 1447 320 3027 638 380 399 12 816 1055 148 851 1038 595 381 2316 1074 Spaces Moved 36393 | 1 752 645 780 342 701 726 306 1081 681 8256 880 689 112 430 834 158 447 353 730 912 45 1725 2185 235 1739 1043 1189 677 3013 4726 Core 154 | . . . . . . . . . . . . . . . . . 151 . . . . . . . . . 3 . . . Treads 12511 | . 140 645 780 342 701 726 306 1081 681 7109 . . . . . . . . . . . . . . . . . . . . Legs 5512 | 1 612 . . . . . . . . 1147 880 689 112 430 834 158 296 353 . . . . . . . . . . . . Wheels . | . . . . . . . . . . . . . . . . . . . . . . . . . . . . . . . Hover . | . . . . . . . . . . . . . . . . . . . . . . . . . . . . . . . Flight 18168 | . . . . . . . . . . . . . . . . . . . 730 912 45 1725 2185 235 1739 1043 1140 675 3013 4726 Fastest Speed 6 | 120 120 240 150 160 160 160 160 145 145 100 100 112 112 112 108 108 108 100 26 26 26 21 11 20 7 7 7 7 7 6 Average Speed 104 | 120 138 240 166 160 160 160 186 166 145 214 113 112 112 112 110 108 578 107 26 26 26 21 20 24 16 18 17 16 33 12 Slowest Speed 1500 | 120 240 240 240 160 160 160 240 240 145 305 180 112 112 114 114 108 1500 180 26 102 26 26 95 90 21 87 150 20 93 80 Overloaded Moves 298 | . . . . . . . . . . . . . . . . . . . . . . . 16 . 42 23 9 9 33 166 Propulsion Burnouts . | . . . . . . . . . . . . . . . . . . . . . . . . . . . . . . . Robots Hopped 54 | . . . . . . . . . . . . . . . . . . . 1 . . 10 2 . 20 4 2 14 . 1 Cave-ins Triggered . | . . . . . . . . . . . . . . . . . . . . . . . . . . . . . . . Teleports 2 | . . . . . . . . . . . . . . . . . . . . . . . . . . . . . 1 1 Spacefolds 19 | . . . . . . . . . . . . . . . . . . . . . . . . . . . 18 1 . . Exploration Rate (%) 58 | 2 97 97 43 49 71 99 26 92 91 93 23 78 16 13 86 52 93 30 17 75 8 48 57 97 52 76 68 13 54 97 Regions Visited 30 Branch Regions 21 Pre-discovered Areas 9 | . . . . 1 1 . . 1 3 . . 2 . . . . . . . . . . . . . 1 . . . . Known Exits Taken 13 | . . . 1 . . . 1 . . . 1 . . 1 . . . 1 1 1 1 1 . . 1 1 1 1 . . Unknown Exits Taken 17 | 1 1 1 . 1 1 1 . 1 1 1 . 1 1 . 1 1 1 . . . . . 1 1 . . . . 1 . Scrap Searched 15 | . . 1 . 1 . 1 . . . 3 . 2 3 . . . . . . 4 . . . . . . . . . . Spaces Dug 209 | . . 3 1 . . . . . . 4 25 3 . 4 . . . 2 13 3 . 22 10 . 22 3 16 7 60 11 Terrain Destroyed 1674 | . . 5 24 . . . 8 . . 164 61 3 48 30 78 1 . 4 13 234 . 22 329 . 22 3 16 7 185 417 Melee 138 | . . . 1 . . . . . . 2 21 3 . 3 . . . 1 13 3 . 22 9 . 21 3 16 7 2 11 Projectile 431 | . . 5 . . . . . . . 162 11 . . 1 5 1 . 3 . . . . . . . . . . 62 181 AOE 777 | . . . 23 . . . 8 . . . 28 . 48 26 73 . . . . 231 . . 317 . . . . . 23 . Terrain Rammed . | . . . . . . . . . . . . . . . . . . . . . . . . . . . . . . . Walls Destroyed . | . . . . . . . . . . . . . . . . . . . . . . . . . . . . . . . Machines Disabled . | . . . . . . . . . . . . . . . . . . . . . . . . . . . . . . . Actions | -11 -10 -10 -9 -9 -9 -8 -8 -8 -8 -8 -6 -6 -6 -5 -5 -5 -5 -5 -4 -4 -4 -3 -3 -3 -2 -2 -2 -1 -1 -1 --------- Run | Yrd Mat Min Mat Min Exi Min Mat Sto Rec Scr Fac Low Low Fac Ext Cet Arc Hub Fac Upp Upp Res Arm Lab Res Qua Sec Acc Com Ac0 Total 52781 | . 1042 692 1035 440 780 857 469 1367 708 16683 1104 944 192 517 1248 292 881 591 905 1022 44 2091 2666 317 2202 1868 1496 907 4264 5157 Wait 12990 | . 189 17 68 53 22 86 76 146 10 7701 55 211 59 46 224 98 417 204 77 65 . 280 247 39 305 777 248 183 933 154 Move 36231 | . 751 644 779 341 700 725 305 1080 680 8255 879 688 111 429 833 157 446 352 727 911 44 1708 2180 234 1700 1034 1156 649 3010 4723 Hop 46 | . . . . . . . . . . . . . . . . . . . 1 . . 6 2 . 18 4 2 12 . 1 Pick Up 333 | . 9 4 28 1 10 2 8 5 1 116 17 3 1 5 . 3 . 1 11 2 . 10 11 9 23 2 8 4 29 10 Fast Attach 236 | . 2 . 6 3 1 1 2 7 . 23 13 2 . 4 4 4 5 4 3 1 . 13 11 7 26 16 13 16 29 20 Attach 164 | . 3 . 8 . 3 1 2 1 1 39 7 4 . 2 1 2 . . 13 2 . 2 5 4 8 1 6 3 34 12 Detach 130 | . 2 . 4 1 1 . . . . 42 4 3 . 1 2 1 . . 9 . . 1 5 5 5 1 6 5 21 11 Swap 210 | . 4 4 15 5 5 6 12 15 . 47 12 3 7 7 9 1 1 5 3 . . 9 9 . 9 3 6 . 7 6 Drop 487 | . 5 . 30 4 10 3 18 24 1 129 27 2 2 7 . 7 4 6 19 . . 13 15 11 43 16 10 15 43 23 Fire 971 | . 73 16 85 27 25 27 42 78 7 318 46 6 3 11 35 4 . 7 . 27 . 8 63 . 24 . . . 20 19 Melee 676 | . . . 1 . . . . . . 13 44 22 9 5 50 15 8 9 18 14 . 35 34 8 40 14 41 20 98 178 Ram . | . . . . . . . . . . . . . . . . . . . . . . . . . . . . . . . Kick 4 | . 3 . . . . . . . . . . . . . 1 . . . . . . . . . . . . . . . Crush 52 | . 1 7 11 5 . 6 4 10 8 . . . . . . . . . . . . . . . . . . . . . Escape Stasis 102 | . . . . . . . . 1 . . . . . . 2 . . . 24 . . . 36 . . . . . 39 . Rewire 133 | . . . . . . . . . . . . . . . 87 . . . . . . . 45 . . . . . 1 . Trap 10 | . . . . . 3 . . . . . . . . . . . . 3 . . . 4 . . . . . . . . Miscellaneous 6 | . . . . . . . . . . . . . . . . . . . . . . 2 3 . 1 . . . . . Route ------- -11/Scrapyard -10/Materials (discovered 5 exits: *Mat x3 / [*Min x2]) -10/Mines (discovered 2 exits: *Mat x2) -9/Materials (discovered 2 exits: *Mat / *Min) -9/Mines (discovered 3 exits: *Mat x2 / *Exi) -9/Exiles -8/Mines (discovered 2 exits: *Mat x2) -8/Materials (discovered 2 exits: *Sto x2) -8/Storage (discovered 2 exits: [*Fac] / *Rec) -8/Recycling (discovered 2 exits: *Fac / *Scr) -8/Scraptown (discovered 2 exits: *Fac x2) -6/Factory (discovered 2 exits: *Low x2) -6/Lower Caves -6/Lower Caves -5/Factory (discovered 4 exits: Upp x2 / *Ext x2) -5/Extension (discovered 2 exits: *Fac / *Cet) -5/Cetus -5/Archives (discovered 3 exits: *Fac / *Hub x2) -5/Hub_04(d) (discovered 4 exits: *Fac x4) -4/Factory (discovered 2 exits: *Upp x2) -4/Upper Caves (discovered 2 exits: *Upp / [*War]) -4/Upper Caves -3/Research (discovered 4 exits: *Res / *Arm / Tes x2) -3/Armory (discovered 2 exits: *Res / [*Lab]) -3/Lab -2/Research (discovered 5 exits: Acc x3 / *Qua x2) -2/Quarantine (discovered 2 exits: *Acc / *Sec) -2/Section 7 -1/Access (discovered 2 exits: Sur / *Com) -1/Command (discovered 3 exits: *Sur x2 / *Ac0) -1/Access_0 Near Former Tau Ceti IV History --------- Turn | Location | Event 1 | -11/Scrapyard | Discovered new exit (range 0) 1 | -11/Scrapyard | Entered Materials 99 | -10/Materials | Discovered new exit (range 15) 316 | -10/Materials | Build established: Mutant 526 | -10/Materials | Discovered new exit (range 10) 831 | -10/Materials | Discovered new exit (range 16) 901 | -10/Materials | Derelicts attacked the area 1047 | -10/Materials | Discovered new exit (range 6) 1397 | -10/Materials | Discovered new exit (range 15) 1467 | -10/Materials | Entered Mines 1475 | -10/Mines | Met a Derelict bent on vengeance 1488 | -10/Mines | Assembled infested the area 1496 | -10/Mines | Learned 2 Materials zone layouts 1769 | -10/Mines | Found a hidden stash of uninstalled traps 2259 | -10/Mines | Discovered new exit (range 9) 2899 | -10/Mines | Discovered new exit (range 10) 3110 | -10/Mines | Entered Materials 3110 | -9/Materials | Evolved 2 slots: Propulsion x1, Weapon x1 3111 | -9/Materials | Identified exit to Mines 3419 | -9/Materials | Build established: Gunner 4283 | -9/Materials | Build established: Scavenger-Gunner 4314 | -9/Materials | Discovered new exit (range 8) 4832 | -9/Materials | Entered Mines 4844 | -9/Mines | Discovered new exit (range 9) 4848 | -9/Mines | YI-UF0 nonchalantly dropped a Grenade Launcher on the ground 4921 | -9/Mines | Destroyed YI-UF0 4932 | -9/Mines | Found Prototype Storage 4932 | -9/Mines | Identified YI-UF0's Bottomless Matter Pit 4942 | -9/Mines | Found Prototype Launcher 4942 | -9/Mines | Identified YI-UF0's Doublenader 4969 | -9/Mines | Build established: Scavenger-Tank 5087 | -9/Mines | Discovered new exit (range 7) 5278 | -9/Mines | Learned location of Storage (-8) 5427 | -9/Mines | Build established: Scavenger-Gunner 5525 | -9/Mines | Deemed a non-threat by the Exiles lab entrance 5526 | -9/Mines | Discovered new exit (range 5) 5533 | -9/Mines | Entered Exiles 5573 | -9/Exiles | Met 8R-AWN 5599 | -9/Exiles | Met EX-HEX 5663 | -9/Exiles | Met EX-DEC 5795 | -9/Exiles | Build established: Scavenger-Tank 5913 | -9/Exiles | Learned location of Zion (-6) 5956 | -9/Exiles | Discovered new exit (range 14) 6116 | -9/Exiles | Warned about trapping Exiles lab 6167 | -9/Exiles | Met EX-BIN 6376 | -9/Exiles | Aligned with FarCom system 6378 | -9/Exiles | Given EX-Vault access code 6419 | -9/Exiles | Opened EX-Vault 6432 | -9/Exiles | Found Cloak of Protection 6449 | -9/Exiles | Found AWS/Autocannon 6482 | -9/Exiles | Warned to stay clear of 0b10 Research branches 6488 | -9/Exiles | Exiles lab attacked by MAIN.C 6634 | -9/Exiles | Attacked by the Exiles 6676 | -9/Exiles | Core integrity fell below 50% 6711 | -9/Exiles | Destroyed 8R-AWN 6717 | -9/Exiles | Lost 3 parts (1p1n1u) 6764 | -9/Exiles | Stole two prototypes: Cloak of Protection, AWS/Autocannon 6764 | -9/Exiles | Entered Mines 7030 | -8/Mines | Discovered new exit (range 4) 7039 | -8/Mines | Build established: Scavenger-Gunner 7559 | -8/Mines | Discovered new exit (range 8) 8100 | -8/Mines | Entered Materials 8100 | -8/Materials | Evolved 2 slots: Utility x2 8396 | -8/Materials | Build established: Scavenger-Tank 8799 | -8/Materials | Identified exit to Storage 8834 | -8/Materials | Garrison activated, responded to threat 8891 | -8/Materials | Entered Storage 9592 | -8/Storage | Discovered new exit (range 16) 10129 | -8/Storage | Build established: Tank 11032 | -8/Storage | Met a pair of Derelict thieves 11051 | -8/Storage | Used back door to open Recycling access 11051 | -8/Storage | Discovered new exit (range 3) 11058 | -8/Storage | Entered Recycling 11058 | -8/Recycling | Accompanied by 2 allies 11430 | -8/Recycling | Scanned before Scraplab entrance 11703 | -8/Recycling | Discovered new exit (range 16) 12065 | -8/Recycling | Entered Scraplab 12077 | -8/Recycling | Discovered new exit (range 2) 12083 | -8/Recycling | Entered Scraptown 12083 | -8/Scraptown | Accompanied by 2 allies 12083 | -8/Scraptown | System corruption cleaned by C-Scrubber 12234 | -8/Scraptown | Visited Cyclists 12243 | -8/Scraptown | Visited Comm Corps 12302 | -8/Scraptown | Visited Red Mages 12475 | -8/Scraptown | Discovered new exit (range 9) 12633 | -8/Scraptown | Visited Cave Peace 12656 | -8/Scraptown | Visited Shadow of the Wyrm 12697 | -8/Scraptown | Turned away by UFD registrar 12719 | -8/Scraptown | Visited Assassins FH 12739 | -8/Scraptown | Visited Symbiants 13009 | -8/Scraptown | Attacked by Scraptown defenders 13235 | -8/Scraptown | Destroyed Triborg 13248 | -8/Scraptown | Found Prototype Ballistic Cannon 13255 | -8/Scraptown | Lost 4 parts (3n1u) 13291 | -8/Scraptown | Found Unknown Treads 13301 | -8/Scraptown | Destroyed 7 combat bots 13609 | -8/Scraptown | Identified Tri-treads 13989 | -8/Scraptown | AWS/Autocannon suddenly broke down 13991 | -8/Scraptown | Identified Siege Cannon 14299 | -8/Scraptown | Build established: Scavenger-Tank 15085 | -8/Scraptown | Core integrity fell below 50% 16133 | -8/Scraptown | Found Tri-treads 16246 | -8/Scraptown | Found Siege Articulator 16736 | -8/Scraptown | Entered Cyclist Reading Room 19560 | -8/Scraptown | Core integrity fell below 20% 20011 | -8/Scraptown | System corruption cleaned by C-Scrubber 22562 | -8/Scraptown | System corruption cleaned by C-Scrubber 22901 | -8/Scraptown | Build established: Tank 23295 | -8/Scraptown | Visited A0-MCA Data Center 23740 | -8/Scraptown | Visited Junk Repository 23799 | -8/Scraptown | Visited Sword Containment 23889 | -8/Scraptown | Visited Observation Area 24027 | -8/Scraptown | Visited Analyses Database 24085 | -8/Scraptown | Visited Junk Repository 24130 | -8/Scraptown | Visited Botcube Research 24139 | -8/Scraptown | Build established: Mutant 24223 | -8/Scraptown | Visited Science Testing Area 24852 | -8/Scraptown | Found PL-3XN's Ring of Power 24866 | -8/Scraptown | Found Surveybot 24 Chip 24934 | -8/Scraptown | Visited Curators Association 25085 | -8/Scraptown | Found Prototype Processor 26943 | -8/Scraptown | Found Lrg. Botcube 26982 | -8/Scraptown | Build established: Scavenger-Mutant 27326 | -8/Scraptown | Build established: Mutant 27779 | -8/Scraptown | Lrg. Botcube activated 27813 | -8/Scraptown | Lrg. Botcube completed mutation into treaded form, armed with 4 guns. 28043 | -8/Scraptown | Found Scrap Suit 28378 | -8/Scraptown | Found Lrg. Botcube 31413 | -8/Scraptown | Lrg. Botcube activated 31449 | -8/Scraptown | Lrg. Botcube completed mutation into treaded form, armed with 4 guns. 32206 | -8/Scraptown | Build established: Scavenger-Mutant 33698 | -8/Scraptown | Found Scrap Suit 34104 | -8/Scraptown | Found Lrg. Botcube 35552 | -8/Scraptown | Lrg. Botcube activated 35588 | -8/Scraptown | Lrg. Botcube completed mutation into legged form, armed with 4 guns. 36089 | -8/Scraptown | Build established: Mutant 36291 | -8/Scraptown | Found Scrap Suit 36595 | -8/Scraptown | Build established: Scavenger-Scrapper 36761 | -8/Scraptown | Found Scrap Suit 38255 | -8/Scraptown | Found Scrap Suit 38270 | -8/Scraptown | Found Scrap Suit 38307 | -8/Scraptown | Discovered new exit (range 5) 38346 | -8/Scraptown | Entered Factory 38346 | -6/Factory | Accompanied by 3 allies 38346 | -6/Factory | Evolved 4 slots: Propulsion x1, Utility x3 38987 | -6/Factory | Identified exit to Lower Caves 39188 | -6/Factory | Cargo convoy interrupted 39205 | -6/Factory | Tech Extrapolator generated special schematic: Machine Rigger 39208 | -6/Factory | Found PL-3XN's Ring of Power 39316 | -6/Factory | Found Prototype Launcher 39316 | -6/Factory | Identified Mni. Smartbomb Launcher 39396 | -6/Factory | Found Prototype Device 39396 | -6/Factory | Identified Exp. ECM Suite 39510 | -6/Factory | Build established: Scavenger-Mutant 39666 | -6/Factory | Identified Expert System 39675 | -6/Factory | Found Prototype Device 39675 | -6/Factory | Identified Active Sensor Suite 39685 | -6/Factory | Entered Lower Caves 39685 | -6/Lower Caves | Accompanied by 3 allies 39685 | -6/Lower Caves | Spotted L2-L74(f) 39687 | -6/Lower Caves | Encountered a Master Thief 39688 | -6/Lower Caves | Destroyed L2-L74(f) 39703 | -6/Lower Caves | Spotted 98-9CI(f) 39704 | -6/Lower Caves | Encountered a Master Thief 39707 | -6/Lower Caves | Allies destroyed 98-9CI(f) 39734 | -6/Lower Caves | Tech Extrapolator generated special schematic: Active Sensor Spoofer 40474 | -6/Lower Caves | Build established: Mutant 40503 | -6/Lower Caves | Spotted B-75 Beast 40538 | -6/Lower Caves | Allies destroyed B-75 Beast 40560 | -6/Lower Caves | Discovered new exit (range 5) 40578 | -6/Lower Caves | Tech Extrapolator generated special schematic: Energy Deflector 40635 | -6/Lower Caves | Encountered a Warlord checkpoint 40749 | -6/Lower Caves | Entered another Lower Caves area 40749 | -6/Lower Caves | Accompanied by 3 allies 40830 | -6/Lower Caves | Encountered a Warlord checkpoint 40885 | -6/Lower Caves | Murdered 3 allies 40934 | -6/Lower Caves | Discovered new exit (range 7) 40973 | -6/Lower Caves | Entered Factory 40973 | -5/Factory | Accompanied by 3 allies 40973 | -5/Factory | Evolved 2 slots: Propulsion x1, Utility x1 41115 | -5/Factory | Build established: Scavenger-Mutant 41403 | -5/Factory | Identified exit to Upper Caves 41403 | -5/Factory | Identified exit to Extension 41562 | -5/Factory | Entered Extension 41562 | -5/Extension | Accompanied by 3 allies 41664 | -5/Extension | Build established: Hacker-Mutant 42273 | -5/Extension | Rescued A7 42494 | -5/Extension | Spotted B-75 Beast 42503 | -5/Extension | Destroyed B-75 Beast 42516 | -5/Extension | Spotted B-75 Beast 42523 | -5/Extension | Destroyed B-75 Beast 42555 | -5/Extension | Forged Quantum Companion 42773 | -5/Extension | Rescued a captive Derelict 42858 | -5/Extension | Build established: Commander-Mutant 42865 | -5/Extension | Rescued a captive Derelict 42866 | -5/Extension | Rescued a captive Derelict 42946 | -5/Extension | Discovered new exit (range 10) 42947 | -5/Extension | Discovered new exit (range 6) 43009 | -5/Extension | Entered Cetus 43009 | -5/Cetus | Accompanied by 20 allies (A7) 43014 | -5/Cetus | Acquired a Cetus Manufacturing Module code from A7 43024 | -5/Cetus | Spotted Cetus Guard 43024 | -5/Cetus | Spotted Cetus Guard 43028 | -5/Cetus | Spotted Cetus Guard 43028 | -5/Cetus | Spotted Cetus Guard 43037 | -5/Cetus | Allies destroyed Cetus Guard 43047 | -5/Cetus | Allies destroyed Cetus Guard 43055 | -5/Cetus | Allies destroyed Cetus Guard 43112 | -5/Cetus | Started Cetus Manufacturing Module 43125 | -5/Cetus | Discovered new exit (range 16) 43137 | -5/Cetus | Manufactured an Enhanced Grunt 43149 | -5/Cetus | Spotted Cetus Guard 43149 | -5/Cetus | Spotted Cetus Guard 43161 | -5/Cetus | Spotted Cetus Guard 43161 | -5/Cetus | Spotted Cetus Guard 43162 | -5/Cetus | Manufactured an Enhanced Grunt 43165 | -5/Cetus | Allies destroyed Cetus Guard 43167 | -5/Cetus | Allies destroyed Cetus Guard 43177 | -5/Cetus | Allies destroyed Cetus Guard 43187 | -5/Cetus | Manufactured an Enhanced Grunt 43212 | -5/Cetus | Manufactured an Enhanced Grunt 43237 | -5/Cetus | Manufactured an Enhanced Grunt 43237 | -5/Cetus | Murdered A7 43238 | -5/Cetus | Extracted ID and sensor layout for unrecognized location from A7's data core 43329 | -5/Cetus | Entered Archives 43329 | -5/Archives | Accompanied by 20 allies 43346 | -5/Archives | Discovered new exit (range 14) 43389 | -5/Archives | Discovered new exit (range 15) 43463 | -5/Archives | Discovered new exit (range 21) 46356 | -5/Archives | Entered Hub_04(d) 46356 | -5/Hub_04(d) | Accompanied by 19 allies 46373 | -5/Hub_04(d) | Identified exit to Factory 46454 | -5/Hub_04(d) | Garrison activated, responded to threat 46787 | -5/Hub_04(d) | Network Hub disabled 46860 | -5/Hub_04(d) | Lost 14 allies 46914 | -5/Hub_04(d) | Network Hub disabled 46924 | -5/Hub_04(d) | Spotted Lightning 46956 | -5/Hub_04(d) | First assault squad dispatched 46994 | -5/Hub_04(d) | Spotted Lightning 46994 | -5/Hub_04(d) | Spotted Lightning 46994 | -5/Hub_04(d) | Spotted Lightning 46994 | -5/Hub_04(d) | Entered Factory 46994 | -4/Factory | Evolved 2 slots: Power x1, Propulsion x1 47256 | -4/Factory | Identified exit to Upper Caves 47302 | -4/Factory | Build established: Scavenger-Sprinter 47374 | -4/Factory | Entered Upper Caves 47387 | -4/Upper Caves | Learned Research emergency access door positions 47456 | -4/Upper Caves | Spotted B-86 Titan 47478 | -4/Upper Caves | Encountered a Warlord checkpoint 47517 | -4/Upper Caves | Destroyed B-86 Titan 47533 | -4/Upper Caves | A Derelict revealed a hidden shortcut to "reach the base" 47542 | -4/Upper Caves | Lost 3 allies 47693 | -4/Upper Caves | Learned Research garrison access intel 47759 | -4/Upper Caves | Discovered new exit (range 6) 47773 | -4/Upper Caves | Identified exit to Upper Caves 47773 | -4/Upper Caves | Entered another Upper Caves area 47774 | -4/Upper Caves | Discovered new exit (range 12) 47777 | -4/Upper Caves | Identified exit to Research 47785 | -4/Upper Caves | Entered Research 47785 | -3/Research | Evolved 2 slots: Propulsion x1, Utility x1 47787 | -3/Research | Loaded intel: 3 garrison access locations 47985 | -3/Research | Revision forces began assault on 0b10 48205 | -3/Research | Spotted B-86 Titan 48245 | -3/Research | Build established: Hacker-Sprinter 48295 | -3/Research | Identified exit to Armory 48295 | -3/Research | Identified exit to Testing 48312 | -3/Research | Lost 3 allies 48351 | -3/Research | Fabricated Multitool (x1) 48366 | -3/Research | Discovered new exit (range 11) 48400 | -3/Research | Central database locked down 48460 | -3/Research | Repaired Broken Fusion Reactor 48485 | -3/Research | Research terminal network offline 48601 | -3/Research | Entered Armory 48602 | -3/Armory | Met VL-GR5, who suggested a friendly competition 48647 | -3/Armory | Repaired Lgt. Nuclear Core 48687 | -3/Armory | Fabricated Femtoactuators? 48920 | -3/Armory | Spotted B-86 Titan 48969 | -3/Armory | Discovered new exit (range 9) 48979 | -3/Armory | Spotted Armor Guard 48979 | -3/Armory | Spotted Armor Guard 49010 | -3/Armory | Destroyed Armor Guard 49029 | -3/Armory | Allies destroyed Armor Guard 49033 | -3/Armory | Found Superdense Plating 49064 | -3/Armory | Discovered new exit (range 4) 49143 | -3/Armory | Spotted Armor Guard 49143 | -3/Armory | Spotted Armor Guard 49222 | -3/Armory | Found Disassembled Obliterator 49230 | -3/Armory | Found PL-3XN's Ring of Power 49231 | -3/Armory | Assembled PL-3XN's Obliterator 49305 | -3/Armory | Fabricated Exp. Melee Analysis Suite (x1) 49327 | -3/Armory | VL-GR5 left a parting gift on exiting Armory 49375 | -3/Armory | P-80 Master assimilated allied Assassin 8d 49426 | -3/Armory | Lost 4 allies 49575 | -3/Armory | Repaired Broken Mni. Smartbomb Launcher? 49644 | -3/Armory | First assault squad dispatched 49656 | -3/Armory | Entered Lab 49656 | -3/Lab | Discovered new exit (range 9) 49659 | -3/Lab | Hidden lab's door opened automatically 49659 | -3/Lab | Sensor layout match revealed 49660 | -3/Lab | Gained access to the hidden lab's interior 49724 | -3/Lab | Found Prototype Energy Gun 49724 | -3/Lab | Identified Tachyon Dispersion Ray 49727 | -3/Lab | Found Prototype Protection 49727 | -3/Lab | Identified Med. Regenerative Plating 49730 | -3/Lab | Found Prototype Hackware 49753 | -3/Lab | Found Alien Artifact 49755 | -3/Lab | Found Alien Artifact 49755 | -3/Lab | Identified Integrated Mediator 49755 | -3/Lab | Installed Integrated Mediator, increased core attachment efficiency 49757 | -3/Lab | Found Alien Artifact 49757 | -3/Lab | Identified Core Expander 49757 | -3/Lab | Installed Core Expander, added new Weapon slot 49767 | -3/Lab | Found Alien Artifact 49772 | -3/Lab | Identified Deep Network Scanner 49790 | -3/Lab | Identified Core Reset Matrix 49790 | -3/Lab | Identified Transdimensional Reconstructor 49790 | -3/Lab | Used Core Reset Matrix 49804 | -3/Lab | Entered Research 49804 | -2/Research | Evolved 2 slots: Propulsion x1, Utility x1 49990 | -2/Research | Spotted B-90 Cyclops 50007 | -2/Research | Identified exit to Quarantine 50177 | -2/Research | Identified exit to Access 50208 | -2/Research | Loaded intel: 55 trap records 50218 | -2/Research | Spotted B-90 Cyclops 50236 | -2/Research | Spotted B-90 Cyclops 50240 | -2/Research | Learned 4 Access zone layouts 50302 | -2/Research | Repaired Imp. Utility Shielding 50348 | -2/Research | Fabricated Exp. Utility Shielding (x1) 50388 | -2/Research | Fabricated Exp. Utility Shielding (x1) 50444 | -2/Research | Found Prototype Slashing Weapon 50448 | -2/Research | Identified Molecular Scythe 50570 | -2/Research | Found Prototype Device 50571 | -2/Research | Found Prototype Launcher 50572 | -2/Research | Identified Adv. Micro-nuke Launcher 50590 | -2/Research | Identified Beam Splitter 50655 | -2/Research | Entered Quarantine 50656 | -2/Quarantine | Detected hypermatrix surge 50656 | -2/Quarantine | Sensed 6 artifacts in vicinity 50709 | -2/Quarantine | Repaired Adv. Gravity Neutralizer 50824 | -2/Quarantine | Identified exit to Section 7 50832 | -2/Quarantine | Found Subatomic Replicator 50834 | -2/Quarantine | Forged Prototype Slashing Weapon 50881 | -2/Quarantine | Learned Access scanalyzer intel 50886 | -2/Quarantine | Found Sigix Broadsword 50967 | -2/Quarantine | Learned 8 Access zone layouts 50992 | -2/Quarantine | Learned 4 Section 7 zone layouts 51012 | -2/Quarantine | Learned Research garrison access intel 51025 | -2/Quarantine | Learned Research stockpile data 51078 | -2/Quarantine | Learned Section 7 non-interactive machine intel 51109 | -2/Quarantine | Spotted Fortress 51693 | -2/Quarantine | Entered Section 7 51694 | -2/Section 7 | Sensed 20 artifacts in vicinity 51696 | -2/Section 7 | Loaded intel: 136 non-interactive machine locations 51727 | -2/Section 7 | Found Spacefold Activator 51834 | -2/Section 7 | Spotted S7 Guard 51835 | -2/Section 7 | Found Integrated Thermoelectric Network 51835 | -2/Section 7 | Installed Integrated Thermoelectric Network, gained heat-energy exchange potential 51844 | -2/Section 7 | Found Integrated Dissipator 51844 | -2/Section 7 | Installed Integrated Dissipator, increased core heat dissipation (+20) 51858 | -2/Section 7 | Spotted S7 Guard 51861 | -2/Section 7 | Found Core Membrane 51861 | -2/Section 7 | Installed Core Membrane, gained immunity to corruption 51871 | -2/Section 7 | Spotted B-90 Cyclops 51972 | -2/Section 7 | Spotted Executioner 51973 | -2/Section 7 | Spotted Executioner 52012 | -2/Section 7 | Learned 8 Access zone layouts 52029 | -2/Section 7 | Spotted B-99 Colossus 52045 | -2/Section 7 | Learned Research scanalyzer intel 52058 | -2/Section 7 | Found LRC Inertial Stabilizer 52058 | -2/Section 7 | Installed LRC Inertial Stabilizer, increased mass support (+10) 52060 | -2/Section 7 | Found LRC Energy Well 52060 | -2/Section 7 | Installed LRC Energy Well, increased energy storage capacity (+250) 52062 | -2/Section 7 | Found LRC Armor 52062 | -2/Section 7 | Installed LRC Armor, increased core integrity (+250) 52068 | -2/Section 7 | Learned Research emergency access door positions 52089 | -2/Section 7 | Learned 4 Research zone layouts 52106 | -2/Section 7 | Learned 4 Access zone layouts 52117 | -2/Section 7 | Destroyed Executioner 52127 | -2/Section 7 | Destroyed Executioner 52129 | -2/Section 7 | Found Prototype Processor 52129 | -2/Section 7 | Identified Exp. Core Analyzer 52132 | -2/Section 7 | Found Prototype Processor 52132 | -2/Section 7 | Identified Exp. Targeting Computer 52138 | -2/Section 7 | Found Exp. Core Analyzer 52160 | -2/Section 7 | Found Integrity Redistributor 52163 | -2/Section 7 | Found Integrity Redistributor 52288 | -2/Section 7 | Entered Access 52288 | -1/Access | Evolved 2 slots: Utility x2 52289 | -1/Access | Identified exit to Surface 52289 | -1/Access | Identified exit to Command 52290 | -1/Access | Loaded intel: 4 scanalyzer locations 52442 | -1/Access | Build established: Alien-Sprinter 52669 | -1/Access | Entered Command 52714 | -1/Command | Repaired Imp. Cesium-ion Thruster 52738 | -1/Command | Repaired Impulse Thruster Array 52803 | -1/Command | Spotted B-99 Colossus 52820 | -1/Command | Spotted M Guard 52820 | -1/Command | Spotted M Guard 52820 | -1/Command | Spotted Combat Programmer 52908 | -1/Command | Spotted Combat Programmer 52908 | -1/Command | Destroyed Combat Programmer 52914 | -1/Command | Destroyed Combat Programmer 52937 | -1/Command | Found Prototype Reactor 52937 | -1/Command | Identified Zero-point Reactor 52945 | -1/Command | Found Zero-point Reactor 53056 | -1/Command | Found Prototype Launcher 53056 | -1/Command | Identified Ragnarok Missile Launcher 53087 | -1/Command | Destroyed M Guard 53112 | -1/Command | Found Prototype Device 53112 | -1/Command | Identified Thermal Barrier 53181 | -1/Command | Met MAIN.C 53181 | -1/Command | 0b10 Conduit disabled 53206 | -1/Command | Destroyed MAIN.C Shell 53206 | -1/Command | MAIN.C activated Command garrisons 53211 | -1/Command | Found Zero-point Reactor 53237 | -1/Command | Destroyed MAIN.C 53240 | -1/Command | Discovered exit to Surface (range 33) 53240 | -1/Command | Discovered exit to Surface (range 101) 53240 | -1/Command | Extracted map data and part IDs from MAIN.C's data core 53242 | -1/Command | Found Exp. Powered Armor 53244 | -1/Command | Found Exp. Powered Armor 53269 | -1/Command | Lost 6 parts (1p4n1u) 54283 | -1/Command | Build established: Alien-Gladiator 54572 | -1/Command | Found Exp. Melee Analysis Suite 54687 | -1/Command | Used Integrity Redistributor, redistributed integrity from core (-172) 54838 | -1/Command | Found Exp. Core Analyzer 54972 | -1/Command | Build established: Alien-Sprinter 54982 | -1/Command | Warped through subspace to slip node 54982 | -1/Command | Discovered new exit (range 4) 54985 | -1/Command | Entered Access_0 54986 | -1/Access_0 | Sensed 3 artifacts in vicinity 54986 | -1/Access_0 | Met Architect 55041 | -1/Access_0 | Architect warped through subspace 55072 | -1/Access_0 | Destroyed A8 55105 | -1/Access_0 | A6 warped into view 55163 | -1/Access_0 | Destroyed A6 55173 | -1/Access_0 | Architect warped through subspace 55209 | -1/Access_0 | Architect warped through subspace 55216 | -1/Access_0 | Found Exp. Phase Shifter 55253 | -1/Access_0 | Destroyed 8 combat bots 55264 | -1/Access_0 | Subspace Access Node disabled 55302 | -1/Access_0 | Subspace Access Node disabled 55307 | -1/Access_0 | A5 warped into view 55320 | -1/Access_0 | Used Integrity Redistributor, redistributed integrity from core (-147) 55321 | -1/Access_0 | Core integrity fell below 50% 55336 | -1/Access_0 | Architect warped through subspace 55344 | -1/Access_0 | Destroyed A5 55346 | -1/Access_0 | Found Prototype Protection 55346 | -1/Access_0 | Identified Centrium Linked Plating 55417 | -1/Access_0 | Architect warped through subspace 55440 | -1/Access_0 | Destroyed 8 combat bots 55530 | -1/Access_0 | A4 warped into view 55572 | -1/Access_0 | Architect warped through subspace 55585 | -1/Access_0 | Destroyed A4 55597 | -1/Access_0 | Destroyed A2 55598 | -1/Access_0 | Extracted Singularity Gate Test 138-C access codes from A2's data core 55608 | -1/Access_0 | Found Integrated Reactor 55608 | -1/Access_0 | Installed Integrated Reactor, increased core energy generation (+10) 55617 | -1/Access_0 | Started Test 138-B, establishing a local singularity 55638 | -1/Access_0 | Architect warped through subspace 55722 | -1/Access_0 | A3 warped into view 55731 | -1/Access_0 | Architect warped through subspace 55746 | -1/Access_0 | Found Prototype Ballistic Gun 55746 | -1/Access_0 | Identified A3's Sniper Rifle 55772 | -1/Access_0 | Architect warped through subspace 55783 | -1/Access_0 | Destroyed A3 55880 | -1/Access_0 | Found Hpw. Transdimensional Reconstructor 55907 | -1/Access_0 | Subspace Access Node disabled 56003 | -1/Access_0 | Subspace Access Node disabled 56033 | -1/Access_0 | Found Prototype Device 56033 | -1/Access_0 | Identified ST Field Compressor 56053 | -1/Access_0 | Destroyed Architect 56054 | -1/Access_0 | Architect triggered a singularity event 56054 | -1/Access_0 | Extracted unknown sensor trigger ID from Architect's data core 56055 | -1/Access_0 | Warped through subspace to slip node 56055 | -1/Access_0 | Discovered exit to Surface (range 8) 56057 | -1/Access_0 | Found Modified Sigix Sheargun 56059 | *** | Escaped singularity! Last Messages --------------- 56040_ Quantum Shear penetrates Earth. 56048_ Penetrated by Quantum Shear. 56050_ Architect regenerates Exp. Phase Shifter. 56050_ Penetrated by Quantum Shear. 56053_ Architect: "If I can't win, no one wins!" 56053_ Architect destroyed. 56054_ A0_COM: Initiating irreversible singularity event. Goodbye. 56054_ Acquired data core, extracted unknown sensor trigger ID. 56054_ Acquired 25 matter. 56055_ A0_COM: 10. 56055_ Warped through subspace, drawn to slip node. 56055_ EXIT=FOUND: SURFACE 56056_ A0_COM: 9. 56057_ A0_COM: 8. 56057_ Acquired Modified Sigix Sheargun. 56058_ A0_COM: 7. 56059_ A0_COM: 6. Map ----- +----------------------------------------------------+ | | | | | | | | | | | | | | | | | | | | | | | | | | | | | | | | | ?????????????????????????????????????????????????? | | ?????????????????????????????????????????????????? | | ?????????????????????????????????????????????????? | | ?????????????????????????????????????????????????? | | ?????????????????????????????????????????????????? | | ?????????????????????????????????????????????????? | | ????????????????????????###??????????????????????? | | ???????????????????????## ##?????????????????????? | | ???????????????????????# #?????????????????????? | | ???????????????????????# @ #?????????????????????? | | ??????????????????????## #?????????????????????? | | ??????????????????????# #?????????????????????? | | ??????????????????????# ##?????????????????????? | | ??????????????????????## #?????????????????????? | | ??????????????????????# #?????????????????????? | | ??????????????????????# ##?????????????????????? | | ??????????????????????# < #?????????????????????? | | ??????????????????????# ##?????????????????????? | | ??????????????????????## #??????????????????????? | | ???????????????????????####??????????????????????? | | ?????????????????????????????????????????????????? | | ?????????????????????????????????????????????????? | | ?????????????????????????????????????????????????? | | ?????????????????????????????????????????????????? | | ?????????????????????????????????????????????????? | | ?????????????????????????????????????????????????? | | ?????????????????????????????????????????????????? | | ?????????????????????????????????????????????????? | | ?????????????????????????????????????????????????? | | ?????????????????????????????????????????????????? | | ?????????????????????????????????????????????????? | | ?????????????????????????????????????????????????? | | ?????????????????????????????????????????????????? | | ?????????????????????????????????????????????????? | +----------------------------------------------------+ Best States ------------- Heat Dissipation 88 Energy Generation 93 Energy Capacity 1285 Matter Stores 300 Matter Capacity 300 Sight Range 23 Robot Scan Range 20 Terrain Scan Range 24 Terrain Scan Density 10 ECM Strength 2 Power Amplification 40 Additional Mass Support 20 Armor Coverage 1025 Propulsion Shielding 90 Utility Shielding 90 Weapon Cycling 25 Melee Speed Boost 50 Phase Shifting 20 Evasion (%) 101 Melee Accuracy 32 Core Analysis 12 Armor Integrity Analysis 40 Recoil Reduction 3 Matter Filtering 50 Offensive Hacking 53 Defensive Hacking 14 Authchip Count 2 Trap Extractor Capacity 6 Item Schematics ----------------- Exp. Utility Shielding | -2/Research | Hacked Exp. Melee Analysis Suite | -2/Quarantine | Hacked Exp. Terrain Scanner | -2/Section 7 | Hacked Robot Schematics ------------------ None Fabricated ------------ Multitool | x1 | -3/Research Femtoactuators | x1 | -3/Armory | Authchip Exp. Melee Analysis Suite | x1 | -3/Armory Exp. Utility Shielding | x1 | -2/Research | Authchip Exp. Utility Shielding | x1 | -2/Research Alien Tech Used ----------------- Integrated Mediator Core Expander Core Reset Matrix Subatomic Replicator Sigix Broadsword Spacefold Activator Integrated Thermoelectric Network Integrated Dissipator Core Membrane LRC Inertial Stabilizer LRC Energy Well LRC Armor Integrity Redistributor Transdimensional Reconstructor Integrated Reactor High-powered Transdimensional Reconstructor Achievements -------------- None Challenges ------------ None Game ------ Seed BackupSlugFemtoactuators Manual? 0 Play Time 06:38:08 Cumulative 1055.6 hours Start 2024.08.03 @ 10:15:57 End 2024.08.03 @ 19:24:20 Sessions 1 Manual Loads 0 Difficulty Rogue Special Mode None Game No. 484 Rogue 483 Adventurer 1 Explorer 0 Win Type 6 Total 170 Types 50/13/28/5/2/1/66/3/2 Lore% 93 Gallery% 99 Achievement% 93 Wizard Run 0 Options --------- Layout 2 ASCII 0 Keyboard 1 Movement Numpad Keybinds 0 Fullscreen 0 Font 24/Terminus Map View 50x44 Zoom Use 0% Tactical HUD 1 Map Filters NONE Filters NONE Steam 1 RUN: 2f53b696-41e2-4c71-8708-45f8d8add8c9